Workbook

Sheet Predictability Overall Final..
S1: 2018-Q1
S2: Sellin | T2: W01 | U2: W02 | V2: W03 | W2: W04 | X2: W05 | Y2: W06 | Z2: W07 | AA2: W08 | AB2: W09 | AC2: W10 | AD2: W11 | AE2: W12 | AF2: W13 | AG2: MET
R3: Act | S3: FD Bill | T3: 0.9 | U3: 3.1 | V3: 3.8 | W3: 10.4 | X3: 3.7 | Y3: 5.1 | Z3: 7.3 | AA3: 20.0 | AB3: 19.0 | AC3: 3.4 | AD3: 13.6 | AE3: 26.6 | AF3: 0.0
S4: ZD Bill | T4: 0.2 | U4: 1.0 | V4: 0.1 | W4: 0.1 | X4: 0.0 | Y4: 0.0 | Z4: 0.0 | AA4: 0.0 | AB4: 0.0 | AC4: 0.4 | AD4: 1.3 | AE4: 1.9 | AF4: 0.0
S5: TTL | T5: =SUM(T3:T4) -> 1.0 | U5: =SUM(U3:U4) -> 4.0 | V5: 3.9 | W5: 10.4 | X5: 3.7 | Y5: 5.1 | Z5: 7.3 | AA5: 20.0 | AB5: 19.0 | AC5: 3.8 | AD5: 14.9 | AE5: 28.5 | AF5: 0.0
R6: Commit | S6: FD | T6: 0.7 | U6: 0.7 | V6: 3.0 | W6: 5.0 | X6: 2.3 | Y6: 3.0 | Z6: 7.7 | AA6: 15.0 | AB6: 18.3 | AC6: 2.0 | AD6: 10.6 | AE6: 30.0
S7: ZD | T7: 0.1 | U7: 0.0 | V7: 0.2 | W7: 0.1 | X7: 0.0 | Y7: 0.0 | Z7: 0.0 | AA7: 0.0 | AB7: 0.0 | AC7: 0.0 | AD7: 8.0 | AE7: 0.0
S8: TTL | T8: =SUM(T6:T7) -> 0.7 | U8: 0.7 | V8: 3.2 | W8: 5.1 | X8: 2.3 | Y8: 3.0 | Z8: 7.7 | AA8: 15.0 | AB8: 18.3 | AC8: 2.0 | AD8: 18.6 | AE8: 30.0 | AF8: 0.0
R9: FD Pred. | T9: =IFERROR(T3/T6,0) -> 132% | U9: 441% | V9: 128% | W9: 207% | X9: 163% | Y9: 170% | Z9: 95% | AA9: 133% | AB9: 104% | AC9: 170% | AD9: 128% | AE9: 89% | AG9: =COUNTIFS(T9:AF9,">"&94.5%,T9:AF9,"<"&120.4%)&" / "&COUNT(T9:AF9) -> 2 / 12
R10: ZD Pred. | T10: 331% | U10: 0% | V10: 49% | W10: 160% | X10: 0% | Y10: 0% | Z10: 0% | AA10: 0% | AB10: 0% | AC10: 0% | AD10: =IFERROR(AD4/AD7,0) -> 16% | AE10: =IFERROR(AE4/AE7,0) -> 0% | AG10: =COUNTIFS(T10:AF10,">"&94.5%,T10:AF10,"<"&120.4%)&" / "&COUNT(T10:AF10) -> 0 / 12
R11: Overall | S11: Lin. | T11: 147% | U11: 578% | V11: 123% | W11: 207% | X11: 163% | Y11: 170% | Z11: 95% | AA11: 133% | AB11: 104% | AC11: 190% | AD11: =IFERROR(AD5/AD8,0) -> 80% | AE11: =IFERROR(AE5/AE8,0) -> 95% | AG11: =COUNTIFS(T11:AF11,">"&94.5%,T11:AF11,"<"&120.4%)&" / "&COUNT(T11:AF11) -> 3 / 12
B16: Cons | C16: W1 | D16: W2 | E16: W3 | F16: W4 | G16: W5 | H16: W6 | I16: W7 | J16: W8 | K16: W9 | L16: W10 | M16: W11 | N16: W12 | O16: W13 | P16: MET
B17: Sellin | C17: =T19 -> 0% | D17: 0% | E17: 0% | F17: 0% | G17: 0% | H17: 0% | I17: 0% | J17: 0% | K17: 0% | L17: 0% | M17: 0% | N17: 0% | P17: =COUNTIFS(C17:O17,">"&95%,C17:O17,"<"&120%)&" / "&COUNT(C17:O17) -> 0 / 12
B18: Sellthru | C18: =C41 -> 100% | D18: 110% | E18: =E41 -> 90% | F18: 84% | G18: =G41 -> 111% | H18: 192% | I18: 85% | J18: =J41 -> 93% | K18: 91% | L18: =L41 -> 178% | M18: 96% | P18: =COUNTIFS(C18:O18,">"&95%,C18:O18,"<"&120%)&" / "&COUNT(C18:O18) -> 4 / 11
B19: Sellout | C19: =C63 -> 96% | D19: 107% | E19: =E63 -> 79% | F19: 107% | G19: =G63 -> 121% | H19: 122% | I19: 79% | J19: =J63 -> 90% | K19: 100% | L19: =L63 -> 115% | M19: 63% | P19: =COUNTIFS(C19:O19,">"&95%,C19:O19,"<"&120%)&" / "&COUNT(C19:O19) -> 5 / 11
B21: Sellthru | C21: W01 | D21: W02 | E21: W03 | F21: W04 | G21: W05 | H21: W06 | I21: W07 | J21: W08 | K21: W09 | L21: W10 | M21: W11 | N21: W12 | O21: W13 | P21: MET | R21: Commit | S21: Sellthru | T21: W01 | U21: W02 | V21: W03 | W21: W04 | X21: W05 | Y21: W06 | Z21: W07 | AA21: W08 | AB21: W09 | AC21: W10 | AD21: W11 | AE21: W12 | AF21: W13 | AG21: Act | AH21: Sellthru | AI21: W01 | AJ21: W02 | AK21: W03 | AL21: W04 | AM21: W05 | AN21: W06 | AO21: W07 | AP21: W08 | AQ21: W09 | AR21: W10 | AS21: W11 | AT21: W12 | AU21: W13 | AW21: ST | AX21: W01 | AY21: W02 | AZ21: W03 | BA21: W04 | BB21: W05 | BC21: W06 | BD21: W07 | BE21: W08 | BF21: W09 | BG21: W10 | BH21: W11 | BI21: W12 | BJ21: W13 | BK21: MET
B22: East 1 | C22: =IFERROR(AI22/T22,0) -> 100% | D22: =IFERROR(AJ22/U22,0) -> 98% | E22: =IFERROR(AK22/V22,0) -> 88% | F22: =IFERROR(AL22/W22,0) -> 118% | G22: =IFERROR(AM22/X22,0) -> 221% | H22: =IFERROR(AN22/Y22,0) -> 100% | I22: =IFERROR(AO22/Z22,0) -> 171% | J22: 172% | K22: 275% | L22: 100% | M22: 9% | P22: =COUNTIFS(C22:O22,">"&95%,C22:O22,"<"&120%)&" / "&COUNTA(T22:AF22) -> 5 / 11 | S22: East 1 | T22: 0.03 | U22: 0.27 | V22: 1.61 | W22: 0.84 | X22: 1.08 | Y22: 0.03 | Z22: 0.16 | AA22: 0.57 | AB22: 0.92 | AC22: 0.68 | AD22: 0.08 | AH22: East 1 | AI22: 0.03 | AJ22: 0.26 | AK22: 1.43 | AL22: 0.99 | AM22: 2.38 | AN22: 0.03 | AO22: 0.28 | AP22: 0.98 | AQ22: 2.51 | AR22: 0.68 | AS22: 0.01 | AW22: East | AX22: =IFERROR(SUM(T22:T23)/SUM(AI22:AI23),0) -> 100% | AY22: =IFERROR(SUM(U22:U23)/SUM(AJ22:AJ23),0) -> 94% | AZ22: =IFERROR(SUM(V22:V23)/SUM(AK22:AK23),0) -> 153% | BA22: =IFERROR(SUM(W22:W23)/SUM(AL22:AL23),0) -> 75% | BB22: =IFERROR(SUM(X22:X23)/SUM(AM22:AM23),0) -> 59% | BC22: =IFERROR(SUM(Y22:Y23)/SUM(AN22:AN23),0) -> 100% | BD22: 87% | BE22: 69% | BF22: 50% | BG22: 100% | BH22: 103% | BK22: =COUNTIFS(AX22:BJ22,">"&94.5%,AX22:BJ22,"<"&120.4%)&" / "&COUNT(AX22:BJ22) -> 4 / 11
B23: East 2 | C23: 100% | D23: 108% | E23: 51% | F23: 167% | G23: 137% | H23: 100% | I23: 69% | J23: 111% | K23: 136% | L23: 100% | M23: 126% | P23: =COUNTIFS(C23:O23,">"&95%,C23:O23,"<"&120%)&" / "&COUNTA(T23:AF23) -> 5 / 11 | S23: East 2 | T23: 0.05 | U23: 1.19 | V23: 2.67 | W23: 0.40 | X23: 1.78 | Y23: 0.10 | Z23: 0.20 | AA23: 0.48 | AB23: 1.06 | AC23: 0.12 | AD23: 0.25 | AH23: East 2 | AI23: 0.05 | AJ23: 1.29 | AK23: 1.37 | AL23: 0.68 | AM23: 2.44 | AN23: 0.10 | AO23: 0.14 | AP23: 0.53 | AQ23: 1.44 | AR23: 0.12 | AS23: 0.31 | AW23: North | AX23: =IFERROR(SUM(T25:T26)/SUM(AI25:AI26),0) -> 98% | AY23: =IFERROR(SUM(U25:U26)/SUM(AJ25:AJ26),0) -> 90% | AZ23: =IFERROR(SUM(V25:V26)/SUM(AK25:AK26),0) -> 73% | BA23: =IFERROR(SUM(W25:W26)/SUM(AL25:AL26),0) -> 140% | BB23: =IFERROR(SUM(X25:X26)/SUM(AM25:AM26),0) -> 100% | BC23: =IFERROR(SUM(Y25:Y26)/SUM(AN25:AN26),0) -> 94% | BD23: 112% | BE23: 128% | BF23: 78% | BG23: 67% | BH23: 113% | BK23: 4 / 11
B24: East Total | C24: 100% | D24: 106% | E24: 65% | F24: 134% | G24: 169% | H24: 100% | I24: 115% | J24: 144% | K24: 200% | L24: 100% | M24: 98% | P24: =COUNTIFS(C24:O24,">"&95%,C24:O24,"<"&120%)&" / "&COUNT(C24:O24) -> 6 / 11 | S24: East Total | T24: =SUM(T22:T23) -> 0.09 | U24: =SUM(U22:U23) -> 1.45 | V24: 4.28 | W24: 1.25 | X24: 2.86 | Y24: 0.13 | Z24: 0.37 | AA24: 1.05 | AB24: 1.98 | AC24: 0.79 | AD24: 0.33 | AE24: 0.00 | AF24: 0.00 | AH24: East Total | AI24: =SUM(AI22:AI23) -> 0.09 | AJ24: 1.55 | AK24: 2.80 | AL24: 1.67 | AM24: 4.82 | AN24: 0.13 | AO24: 0.42 | AP24: 1.51 | AQ24: 3.95 | AR24: 0.79 | AS24: 0.32 | AT24: 0.00 | AU24: 0.00
B25: North 1 | C25: 103% | D25: 123% | E25: 154% | F25: 63% | G25: 113% | H25: 111% | I25: 64% | J25: 88% | K25: 133% | L25: 138% | M25: 71% | P25: 3 / 11 | S25: North 1 | T25: 0.28 | U25: 0.62 | V25: 1.49 | W25: 1.81 | X25: 4.51 | Y25: 0.28 | Z25: 0.56 | AA25: 1.39 | AB25: 4.11 | AC25: 0.32 | AD25: 0.40 | AH25: North 1 | AI25: 0.29 | AJ25: 0.76 | AK25: 2.30 | AL25: 1.15 | AM25: 5.11 | AN25: 0.31 | AO25: 0.36 | AP25: 1.23 | AQ25: 5.45 | AR25: 0.45 | AS25: 0.29 | AW25: south | AX25: =IFERROR(SUM(T28:T29)/SUM(AI28:AI29),0) -> 100% | AY25: =IFERROR(SUM(U28:U29)/SUM(AJ28:AJ29),0) -> 89% | AZ25: =IFERROR(SUM(V28:V29)/SUM(AK28:AK29),0) -> 81% | BA25: =IFERROR(SUM(W28:W29)/SUM(AL28:AL29),0) -> 131% | BB25: =IFERROR(SUM(X28:X29)/SUM(AM28:AM29),0) -> 95% | BC25: =IFERROR(SUM(Y28:Y29)/SUM(AN28:AN29),0) -> 0% | BD25: 206% | BE25: 148% | BF25: 76% | BG25: 0% | BH25: 440% | BK25: 2 / 11
B26: North 2 | C26: 100% | D26: 105% | E26: 121% | F26: 87% | G26: 80% | H26: 100% | I26: 120% | J26: 61% | K26: 124% | L26: 169% | M26: 104% | P26: 5 / 11 | S26: North 2 | T26: 0.24 | U26: 1.05 | V26: 1.56 | W26: 0.93 | X26: 3.21 | Y26: 0.21 | Z26: 0.47 | AA26: 0.84 | AB26: 3.10 | AC26: 0.20 | AD26: 0.45 | AH26: North 2 | AI26: 0.24 | AJ26: 1.10 | AK26: 1.88 | AL26: 0.81 | AM26: 2.59 | AN26: 0.21 | AO26: 0.57 | AP26: 0.52 | AQ26: 3.85 | AR26: 0.33 | AS26: 0.47 | AW26: west | AX26: =IFERROR(SUM(T31:T32)/SUM(AI31:AI32),0) -> 100% | AY26: =IFERROR(SUM(U31:U32)/SUM(AJ31:AJ32),0) -> 90% | AZ26: =IFERROR(SUM(V31:V32)/SUM(AK31:AK32),0) -> 63% | BA26: =IFERROR(SUM(W31:W32)/SUM(AL31:AL32),0) -> 61% | BB26: =IFERROR(SUM(X31:X32)/SUM(AM31:AM32),0) -> 95% | BC26: =IFERROR(SUM(Y31:Y32)/SUM(AN31:AN32),0) -> 43% | BD26: 92% | BE26: 104% | BF26: 92% | BG26: 11% | BH26: 48% | BK26: 3 / 11
B27: North Total | C27: 102% | D27: 111% | E27: 137% | F27: 71% | G27: 100% | H27: 106% | I27: 89% | J27: 78% | K27: 129% | L27: 150% | M27: 88% | P27: 4 / 11 | S27: North Total | T27: =SUM(T25:T26) -> 0.52 | U27: 1.66 | V27: 3.05 | W27: 2.75 | X27: 7.73 | Y27: 0.50 | Z27: 1.04 | AA27: 2.24 | AB27: 7.21 | AC27: 0.52 | AD27: 0.86 | AE27: 0.00 | AF27: 0.00 | AH27: North Total | AI27: =SUM(AI25:AI26) -> 0.53 | AJ27: 1.85 | AK27: 4.17 | AL27: 1.96 | AM27: 7.70 | AN27: 0.53 | AO27: 0.93 | AP27: 1.74 | AQ27: 9.30 | AR27: 0.78 | AS27: 0.75 | AT27: 0.00 | AU27: 0.00
B28: South 1 | C28: 100% | D28: 126% | E28: 144% | F28: 57% | G28: 101% | H28: 0% | I28: 58% | J28: 51% | K28: 128% | L28: 0% | M28: 20% | P28: 2 / 11 | S28: South 1 | T28: 0.24 | U28: 0.44 | V28: 1.66 | W28: 2.42 | X28: 3.05 | Y28: 0.00 | Z28: 1.18 | AA28: 1.99 | AB28: 3.53 | AC28: 0.00 | AD28: 2.10 | AH28: South 1 | AI28: 0.24 | AJ28: 0.56 | AK28: 2.39 | AL28: 1.38 | AM28: 3.07 | AN28: 0.44 | AO28: 0.68 | AP28: 1.01 | AQ28: 4.54 | AR28: 0.36 | AS28: 0.42 | AW28: Region | AX28: =IFERROR(SUM(T22:T32)/SUM(AI22:AI32),0) -> 99% | AY28: =IFERROR(SUM(U22:U32)/SUM(AJ22:AJ32),0) -> 90% | AZ28: =IFERROR(SUM(V22:V32)/SUM(AK22:AK32),0) -> 92% | BA28: =IFERROR(SUM(W22:W32)/SUM(AL22:AL32),0) -> 114% | BB28: =IFERROR(SUM(X22:X32)/SUM(AM22:AM32),0) -> 89% | BC28: =IFERROR(SUM(Y22:Y32)/SUM(AN22:AN32),0) -> 43% | BD28: 147% | BE28: 120% | BF28: 74% | BG28: 44% | BH28: 237% | BK28: 2 / 11
B29: South 2 | C29: 100% | D29: 108% | E29: 105% | F29: 110% | G29: 108% | H29: 0% | I29: 41% | J29: 84% | K29: 135% | L29: 0% | M29: 26% | P29: 5 / 11 | S29: South 2 | T29: 0.33 | U29: 1.29 | V29: 1.76 | W29: 1.40 | X29: 3.88 | Y29: 0.00 | Z29: 1.50 | AA29: 1.96 | AB29: 3.95 | AC29: 0.00 | AD29: 1.81 | AH29: South 2 | AI29: 0.33 | AJ29: 1.39 | AK29: 1.84 | AL29: 1.55 | AM29: 4.20 | AN29: 0.34 | AO29: 0.61 | AP29: 1.65 | AQ29: 5.33 | AR29: 0.58 | AS29: 0.47 | AW29: LFR | AX29: =IFERROR(AI35/T35,0) -> 100% | AY29: =IFERROR(AJ35/U35,0) -> 113% | AZ29: =IFERROR(AK35/V35,0) -> 170% | BA29: =IFERROR(AL35/W35,0) -> -19% | BB29: =IFERROR(AM35/X35,0) -> 529% | BC29: =IFERROR(AN35/Y35,0) -> 120% | BD29: 128% | BE29: 98% | BF29: 146% | BG29: 684% | BH29: 226% | BK29: 4 / 11
B30: South Total | C30: 100% | D30: 113% | E30: 124% | F30: 77% | G30: 105% | H30: 0% | I30: 48% | J30: 67% | K30: 132% | L30: 0% | M30: 23% | P30: 3 / 11 | S30: South Total | T30: =SUM(T28:T29) -> 0.57 | U30: 1.73 | V30: 3.42 | W30: 3.82 | X30: 6.93 | Y30: 0.00 | Z30: 2.67 | AA30: 3.94 | AB30: 7.48 | AC30: 0.00 | AD30: 3.92 | AE30: 0.00 | AF30: 0.00 | AH30: South Total | AI30: =SUM(AI28:AI29) -> 0.57 | AJ30: 1.95 | AK30: 4.24 | AL30: 2.92 | AM30: 7.27 | AN30: 0.79 | AO30: 1.29 | AP30: 2.66 | AQ30: 9.87 | AR30: 0.94 | AS30: 0.89 | AT30: 0.00 | AU30: 0.00
B31: West 1 | C31: 100% | D31: 111% | E31: 159% | F31: 164% | G31: 105% | H31: 234% | I31: 108% | J31: 96% | K31: 109% | L31: 887% | M31: 206% | P31: 6 / 11 | S31: West 1 | T31: 0.30 | U31: 1.60 | V31: 1.73 | W31: 0.84 | X31: 6.38 | Y31: 0.10 | Z31: 0.62 | AA31: 1.44 | AB31: 4.76 | AC31: 0.14 | AD31: 0.23 | AH31: West 1 | AI31: 0.30 | AJ31: 1.79 | AK31: 2.75 | AL31: 1.37 | AM31: 6.69 | AN31: 0.23 | AO31: 0.67 | AP31: 1.38 | AQ31: 5.19 | AR31: 1.20 | AS31: 0.46 | AW31: India | AX31: =IFERROR(SUM(AI22:AI36)/SUM(T22:T36),0) -> 100% | AY31: =IFERROR(SUM(AJ22:AJ36)/SUM(U22:U36),0) -> 112% | AZ31: =IFERROR(SUM(AK22:AK36)/SUM(V22:V36),0) -> 106% | BA31: =IFERROR(SUM(AL22:AL36)/SUM(W22:W36),0) -> 87% | BB31: =IFERROR(SUM(AM22:AM36)/SUM(X22:X36),0) -> 111% | BC31: =IFERROR(SUM(AN22:AN36)/SUM(Y22:Y36),0) -> 175% | BD31: 72% | BE31: 77% | BF31: 121% | BG31: 228% | BH31: 61% | BK31: =COUNTIFS(AX31:BJ31,">"&94.5%,AX31:BJ31,"<"&120.4%)&" / "&COUNT(AX31:BJ31) -> 4 / 11
B32: West 2 | C32: 0% | D32: 0% | E32: 0% | F32: 0% | G32: 0% | H32: 0% | I32: 0% | J32: 0% | K32: 0% | L32: 0% | M32: 0% | P32: 0 / 11 | S32: West 2 | AH32: West 2 | AW32: SL | AX32: =IFERROR(AI38/T38,0) -> 0% | AY32: 0% | AZ32: =IFERROR(AK38/V38,0) -> 0% | BA32: =IFERROR(AL38/W38,0) -> 0% | BB32: =IFERROR(AM38/X38,0) -> 0% | BC32: =IFERROR(AN38/Y38,0) -> 0% | BD32: 0% | BE32: 0% | BF32: 0% | BG32: 0% | BH32: 0% | BK32: =COUNTIFS(AX32:BJ32,">"&94.5%,AX32:BJ32,"<"&120.4%)&" / "&COUNT(AX32:BJ32) -> 0 / 11
B33: West Total | C33: 100% | D33: 111% | E33: 159% | F33: 164% | G33: 105% | H33: 234% | I33: 108% | J33: 96% | K33: 109% | L33: 887% | M33: 206% | P33: 6 / 11 | S33: West Total | T33: =SUM(T31:T32) -> 0.30 | U33: =SUM(U31:U32) -> 1.60 | V33: 1.73 | W33: 0.84 | X33: 6.38 | Y33: 0.10 | Z33: 0.62 | AA33: 1.44 | AB33: 4.76 | AC33: 0.14 | AD33: 0.23 | AE33: 0.00 | AF33: 0.00 | AH33: West Total | AI33: =SUM(AI31:AI32) -> 0.30 | AJ33: =SUM(AJ31:AJ32) -> 1.79 | AK33: 2.75 | AL33: 1.37 | AM33: 6.69 | AN33: 0.23 | AO33: 0.67 | AP33: 1.38 | AQ33: 5.19 | AR33: 1.20 | AS33: 0.46 | AT33: 0.00 | AU33: 0.00
B34: Region Total | C34: 101% | D34: 111% | E34: 112% | F34: 92% | G34: 111% | H34: 231% | I34: 71% | J34: 84% | K34: 132% | L34: 256% | M34: 46% | P34: 4 / 11 | S34: Region Total | T34: =SUM(T33,T30,T27,T24) -> 1.48 | U34: =SUM(U33,U30,U27,U24) -> 6.45 | V34: 12.48 | W34: 8.65 | X34: 23.89 | Y34: 0.72 | Z34: 4.69 | AA34: 8.66 | AB34: 21.43 | AC34: 1.45 | AD34: 5.32 | AE34: 0.00 | AF34: 0.00 | AH34: Region Total | AI34: =SUM(AI33,AI30,AI27,AI24) -> 1.49 | AJ34: =SUM(AJ33,AJ30,AJ27,AJ24) -> 7.14 | AK34: 13.96 | AL34: 7.92 | AM34: 26.48 | AN34: 1.67 | AO34: 3.31 | AP34: 7.29 | AQ34: 28.31 | AR34: 3.71 | AS34: 2.43 | AT34: 0.00 | AU34: 0.00
B35: LFR | C35: 100% | D35: 113% | E35: 170% | F35: -19% | G35: 529% | H35: 120% | I35: 128% | J35: 98% | K35: 146% | L35: 684% | M35: 226% | P35: 3 / 11 | S35: LFR | T35: 5.00 | U35: 9.12 | V35: 0.29 | W35: 0.20 | X35: 0.21 | Y35: 2.20 | Z35: 0.90 | AA35: 2.24 | AB35: 6.29 | AC35: 0.56 | AD35: 1.50 | AH35: LFR | AI35: 5.00 | AJ35: 10.34 | AK35: 0.49 | AL35: -0.04 | AM35: 1.09 | AN35: 2.64 | AO35: 1.16 | AP35: 2.19 | AQ35: 9.20 | AR35: 3.83 | AS35: 3.39 | AW35: SLBD | AX35: =IFERROR(SUM(AI38:AI39)/SUM(T38:T39),0) -> 0% | AY35: 60% | AZ35: =IFERROR(SUM(AK38:AK39)/SUM(V38:V39),0) -> 49% | BA35: =IFERROR(SUM(AL38:AL39)/SUM(W38:W39),0) -> 102% | BB35: =IFERROR(SUM(AM38:AM39)/SUM(X38:X39),0) -> 101% | BC35: =IFERROR(SUM(AN38:AN39)/SUM(Y38:Y39),0) -> 367% | BD35: 114% | BE35: 379% | BF35: 42% | BG35: 145% | BH35: 119% | BK35: =COUNTIFS(AX35:BJ35,">"&94.5%,AX35:BJ35,"<"&120.4%)&" / "&COUNT(AX35:BJ35) -> 4 / 11
B36: Online | C36: 100% | D36: 100% | E36: -21% | F36: 13% | G36: 99% | H36: 100% | I36: 24% | J36: -75% | K36: 29% | L36: 99% | M36: 70% | P36: 5 / 11 | S36: Online | T36: -0.64 | U36: -0.80 | V36: 1.85 | W36: 1.20 | X36: 4.74 | Y36: 0.02 | Z36: 0.53 | AA36: 1.50 | AB36: 9.75 | AC36: 2.90 | AD36: 0.55 | AH36: Online | AI36: -0.64 | AJ36: -0.80 | AK36: -0.39 | AL36: 0.15 | AM36: 4.71 | AN36: 0.02 | AO36: 0.13 | AP36: -1.13 | AQ36: 2.79 | AR36: 2.86 | AS36: 0.38 | AW36: TTL | AX36: =IFERROR(AI41/T41,0) -> 100% | AY36: =IFERROR(AJ41/U41,0) -> 110% | AZ36: =IFERROR(AK41/V41,0) -> 90% | BA36: =IFERROR(AL41/W41,0) -> 84% | BB36: =IFERROR(AM41/X41,0) -> 111% | BC36: =IFERROR(AN41/Y41,0) -> 192% | BD36: 85% | BE36: 93% | BF36: 91% | BG36: 178% | BH36: 96% | BK36: =COUNTIFS(AX36:BJ36,">"&94.5%,AX36:BJ36,"<"&120.4%)&" / "&COUNT(AX36:BJ36) -> 4 / 11
B37: India Total | C37: 100% | D37: 113% | E37: 96% | F37: 80% | G37: 112% | H37: 147% | I37: 75% | J37: 67% | K37: 108% | L37: 212% | M37: 84% | P37: 5 / 11 | S37: India Total | T37: =SUM(T34:T36) -> 5.85 | U37: =SUM(U34:U36) -> 14.77 | V37: 14.62 | W37: 10.05 | X37: 28.84 | Y37: 2.94 | Z37: 6.12 | AA37: 12.41 | AB37: 37.47 | AC37: 4.91 | AD37: 7.37 | AE37: 0.00 | AF37: 0.00 | AH37: India Total | AI37: =SUM(AI34:AI36) -> 5.86 | AJ37: 16.68 | AK37: 14.06 | AL37: 8.04 | AM37: 32.28 | AN37: 4.33 | AO37: 4.59 | AP37: 8.35 | AQ37: 40.30 | AR37: 10.40 | AS37: 6.20 | AT37: 0.00 | AU37: 0.00
B38: Sri Lanka | C38: 0% | D38: 0% | E38: 0% | F38: 0% | G38: 0% | H38: 0% | I38: 0% | J38: 0% | K38: 0% | L38: 0% | M38: 0% | P38: 0 / 11 | S38: SL | T38: 0.00 | U38: 0.00 | V38: 0.00 | W38: 0.00 | X38: 0.00 | Y38: 0.00 | Z38: 0.00 | AA38: 0.00 | AB38: 0.00 | AC38: 0.00 | AD38: 0.00 | AH38: Sri Lanka | AI38: 0.00 | AJ38: 0.00 | AK38: 0.00 | AL38: 0.00 | AM38: 0.00 | AN38: 0.00 | AO38: 0.00 | AP38: 0.00 | AQ38: 0.00 | AR38: 0.00 | AS38: 0.00
B39: Bangladesh | C39: 0% | D39: 60% | E39: 49% | F39: 102% | G39: 101% | H39: 367% | I39: 114% | J39: 379% | K39: 42% | L39: 145% | M39: 119% | P39: 4 / 11 | S39: BD | T39: 0.00 | U39: 0.80 | V39: 2.00 | W39: 2.30 | X39: 2.44 | Y39: 0.75 | Z39: 2.20 | AA39: 1.10 | AB39: 12.78 | AC39: 5.00 | AD39: 4.08 | AH39: Bangladesh | AI39: 0.00 | AJ39: 0.48 | AK39: 0.97 | AL39: 2.36 | AM39: 2.46 | AN39: 2.75 | AO39: 2.50 | AP39: 4.17 | AQ39: 5.42 | AR39: 7.24 | AS39: 4.85
B40: SLBD | C40: 0% | D40: 60% | E40: 49% | F40: 102% | G40: 101% | H40: 367% | I40: 114% | J40: 379% | K40: 42% | L40: 145% | M40: 119% | P40: 4 / 11 | S40: SLBD | T40: =SUM(T38:T39) -> 0.00 | U40: =SUM(U38:U39) -> 0.80 | V40: 2.00 | W40: 2.30 | X40: 2.44 | Y40: 0.75 | Z40: 2.20 | AA40: 1.10 | AB40: 12.78 | AC40: 5.00 | AD40: 4.08 | AE40: 0.00 | AF40: 0.00 | AH40: SLBD | AI40: =SUM(AI38:AI39) -> 0.00 | AJ40: =SUM(AJ38:AJ39) -> 0.48 | AK40: 0.97 | AL40: 2.36 | AM40: 2.46 | AN40: 2.75 | AO40: 2.50 | AP40: 4.17 | AQ40: 5.42 | AR40: 7.24 | AS40: 4.85 | AT40: 0.00 | AU40: 0.00
B41: Overall | C41: =IFERROR(AI41/T41,0) -> 100% | D41: 110% | E41: 90% | F41: 84% | G41: 111% | H41: 192% | I41: 85% | J41: 93% | K41: 91% | L41: 178% | M41: 96% | P41: 4 / 11 | S41: Consumer | T41: =SUM(T37:T39) -> 5.85 | U41: =SUM(U37:U39) -> 15.57 | V41: 16.62 | W41: 12.35 | X41: 31.28 | Y41: 3.69 | Z41: 8.32 | AA41: 13.51 | AB41: 50.25 | AC41: 9.91 | AD41: 11.45 | AE41: 0.00 | AF41: 0.00 | AH41: Consumer | AI41: =SUM(AI37:AI39) -> 5.86 | AJ41: =SUM(AJ37:AJ39) -> 17.16 | AK41: 15.03 | AL41: 10.39 | AM41: 34.73 | AN41: 7.08 | AO41: 7.10 | AP41: 12.52 | AQ41: 45.72 | AR41: 17.63 | AS41: 11.05 | AT41: 0.00 | AU41: 0.00
B43: Sellout | C43: W01 | D43: W02 | E43: W03 | F43: W04 | G43: W05 | H43: W06 | I43: W07 | J43: W08 | K43: W09 | L43: W10 | M43: W11 | N43: W12 | O43: W13 | P43: MET | R43: Commit | S43: Sellout | T43: W01 | U43: W02 | V43: W03 | W43: W04 | X43: W05 | Y43: W06 | Z43: W07 | AA43: W08 | AB43: W09 | AC43: W10 | AD43: W11 | AE43: W12 | AF43: W13 | AH43: Sellout | AI43: W01 | AJ43: W02 | AK43: W03 | AL43: W04 | AM43: W05 | AN43: W06 | AO43: W07 | AP43: W08 | AQ43: W09 | AR43: W10 | AS43: W11 | AT43: W12 | AU43: W13 | AW43: ST | AX43: W01 | AY43: W02 | AZ43: W03 | BA43: W04 | BB43: W05 | BC43: W06 | BD43: W07 | BE43: W08 | BF43: W09 | BG43: W10 | BH43: W11 | BI43: W12 | BJ43: W13 | BK43: MET
B44: East 1 | C44: =IFERROR(AI44/T44,0) -> 406% | D44: 154% | E44: =IFERROR(AK44/V44,0) -> 49% | F44: =IFERROR(AL44/W44,0) -> 75% | G44: =IFERROR(AM44/X44,0) -> 144% | H44: =IFERROR(AN44/Y44,0) -> 162% | I44: =IFERROR(AO44/Z44,0) -> 67% | J44: 63% | K44: 128% | L44: 93% | M44: 31% | P44: =COUNTIFS(C44:O44,">"&95%,C44:O44,"<"&120%)&" / "&COUNT(C44:O44) -> 0 / 11 | S44: East 1 | T44: 0.03 | U44: 0.26 | V44: 1.67 | W44: 1.04 | X44: 0.98 | Y44: 0.14 | Z44: 0.54 | AA44: 0.64 | AB44: 1.12 | AC44: 0.19 | AD44: 0.59 | AH44: East 1 | AI44: 0.13 | AJ44: 0.40 | AK44: 0.82 | AL44: 0.78 | AM44: 1.42 | AN44: 0.22 | AO44: 0.36 | AP44: 0.41 | AQ44: 1.43 | AR44: 0.17 | AS44: 0.18 | AW44: East | AX44: =IFERROR(SUM(T44:T45)/SUM(AI44:AI45),0) -> 85% | AY44: =IFERROR(SUM(U44:U45)/SUM(AJ44:AJ45),0) -> 99% | AZ44: =IFERROR(SUM(V44:V45)/SUM(AK44:AK45),0) -> 223% | BA44: =IFERROR(SUM(W44:W45)/SUM(AL44:AL45),0) -> 93% | BB44: =IFERROR(SUM(X44:X45)/SUM(AM44:AM45),0) -> 71% | BC44: =IFERROR(SUM(Y44:Y45)/SUM(AN44:AN45),0) -> 56% | BD44: 160% | BE44: 131% | BF44: 73% | BG44: 89% | BH44: 340% | BK44: =COUNTIFS(AX44:BJ44,">"&94.5%,AX44:BJ44,"<"&120.4%)&" / "&COUNT(AX44:BJ44) -> 1 / 11
B45: East 2 | C45: 100% | D45: 76% | E45: 42% | F45: 159% | G45: 138% | H45: 187% | I45: 57% | J45: 89% | K45: 147% | L45: 126% | M45: 28% | P45: 1 / 11 | S45: East 2 | T45: 0.54 | U45: 0.55 | V45: 2.55 | W45: 0.64 | X45: 0.84 | Y45: 0.21 | Z45: 0.48 | AA45: 0.63 | AB45: 0.90 | AC45: 0.24 | AD45: 0.65 | AH45: East 2 | AI45: 0.54 | AJ45: 0.42 | AK45: 1.07 | AL45: 1.03 | AM45: 1.17 | AN45: 0.39 | AO45: 0.27 | AP45: 0.56 | AQ45: 1.32 | AR45: 0.30 | AS45: 0.18 | AW45: North | AX45: =IFERROR(SUM(T47:T48)/SUM(AI47:AI48),0) -> 97% | AY45: =IFERROR(SUM(U47:U48)/SUM(AJ47:AJ48),0) -> 78% | AZ45: =IFERROR(SUM(V47:V48)/SUM(AK47:AK48),0) -> 191% | BA45: =IFERROR(SUM(W47:W48)/SUM(AL47:AL48),0) -> 121% | BB45: =IFERROR(SUM(X47:X48)/SUM(AM47:AM48),0) -> 124% | BC45: =IFERROR(SUM(Y47:Y48)/SUM(AN47:AN48),0) -> 72% | BD45: 129% | BE45: 166% | BF45: 78% | BG45: 64% | BH45: 210% | BK45: 1 / 11
B46: East Total | C46: 118% | D46: 101% | E46: 45% | F46: 107% | G46: 142% | H46: 177% | I46: 62% | J46: 76% | K46: 136% | L46: 112% | M46: 29% | P46: 4 / 11 | S46: East Total | T46: =SUM(T44:T45) -> 0.57 | U46: 0.81 | V46: 4.22 | W46: 1.69 | X46: 1.82 | Y46: 0.35 | Z46: 1.02 | AA46: 1.27 | AB46: 2.01 | AC46: 0.43 | AD46: 1.24 | AE46: 0.00 | AF46: 0.00 | AH46: East Total | AI46: =SUM(AI44:AI45) -> 0.68 | AJ46: 0.82 | AK46: 1.89 | AL46: 1.80 | AM46: 2.58 | AN46: 0.61 | AO46: 0.64 | AP46: 0.97 | AQ46: 2.75 | AR46: 0.48 | AS46: 0.36 | AT46: 0.00 | AU46: 0.00
B47: Norht1 | C47: 100% | D47: 145% | E47: 55% | F47: 67% | G47: 89% | H47: 133% | I47: 84% | J47: 51% | K47: 141% | L47: 181% | M47: 34% | P47: 1 / 11 | S47: Norht1 | T47: 1.09 | U47: 0.59 | V47: 2.43 | W47: 3.13 | X47: 3.34 | Y47: 0.47 | Z47: 1.02 | AA47: 1.57 | AB47: 2.21 | AC47: 0.45 | AD47: 1.07 | AH47: North 1 | AI47: 1.09 | AJ47: 0.86 | AK47: 1.33 | AL47: 2.08 | AM47: 2.96 | AN47: 0.63 | AO47: 0.85 | AP47: 0.80 | AQ47: 3.12 | AR47: 0.82 | AS47: 0.37 | AW47: south | AX47: =IFERROR(SUM(T50:T51)/SUM(AI50:AI51),0) -> 99% | AY47: =IFERROR(SUM(U50:U51)/SUM(AJ50:AJ51),0) -> 66% | AZ47: =IFERROR(SUM(V50:V51)/SUM(AK50:AK51),0) -> 135% | BA47: =IFERROR(SUM(W50:W51)/SUM(AL50:AL51),0) -> 92% | BB47: =IFERROR(SUM(X50:X51)/SUM(AM50:AM51),0) -> 104% | BC47: =IFERROR(SUM(Y50:Y51)/SUM(AN50:AN51),0) -> 66% | BD47: 126% | BE47: 135% | BF47: 96% | BG47: 35% | BH47: 244% | BK47: 3 / 11
B48: North 2 | C48: 110% | D48: 112% | E48: 51% | F48: 123% | G48: 68% | H48: 147% | I48: 69% | J48: 72% | K48: 114% | L48: 133% | M48: 63% | P48: 3 / 11 | S48: North 2 | T48: 0.59 | U48: 0.60 | V48: 3.52 | W48: 1.24 | X48: 2.13 | Y48: 0.36 | Z48: 0.82 | AA48: 1.25 | AB48: 1.79 | AC48: 0.51 | AD48: 0.95 | AH48: North 2 | AI48: 0.65 | AJ48: 0.68 | AK48: 1.78 | AL48: 1.52 | AM48: 1.45 | AN48: 0.53 | AO48: 0.57 | AP48: 0.90 | AQ48: 2.04 | AR48: 0.68 | AS48: 0.60 | AW48: west | AX48: =IFERROR(SUM(T53:T54)/SUM(AI53:AI54),0) -> 99% | AY48: =IFERROR(SUM(U53:U54)/SUM(AJ53:AJ54),0) -> 53% | AZ48: =IFERROR(SUM(V53:V54)/SUM(AK53:AK54),0) -> 270% | BA48: =IFERROR(SUM(W53:W54)/SUM(AL53:AL54),0) -> 66% | BB48: =IFERROR(SUM(X53:X54)/SUM(AM53:AM54),0) -> 74% | BC48: =IFERROR(SUM(Y53:Y54)/SUM(AN53:AN54),0) -> 44% | BD48: 212% | BE48: 124% | BF48: 62% | BG48: 51% | BH48: 505% | BK48: 1 / 11
B49: North Total | C49: 103% | D49: 128% | E49: 52% | F49: 83% | G49: 81% | H49: 139% | I49: 77% | J49: 60% | K49: 129% | L49: 155% | M49: 48% | P49: 1 / 11 | S49: North Total | T49: =SUM(T47:T48) -> 1.68 | U49: 1.20 | V49: 5.95 | W49: 4.37 | X49: 5.47 | Y49: 0.83 | Z49: 1.84 | AA49: 2.82 | AB49: 4.00 | AC49: 0.96 | AD49: 2.02 | AE49: 0.00 | AF49: 0.00 | AH49: North Total | AI49: =SUM(AI47:AI48) -> 1.74 | AJ49: 1.54 | AK49: 3.12 | AL49: 3.61 | AM49: 4.42 | AN49: 1.16 | AO49: 1.42 | AP49: 1.70 | AQ49: 5.15 | AR49: 1.50 | AS49: 0.96 | AT49: 0.00 | AU49: 0.00
B50: South 1 | C50: 100% | D50: 146% | E50: 56% | F50: 112% | G50: 96% | H50: 72% | I50: 85% | J50: 66% | K50: 127% | L50: 141% | M50: 53% | P50: 3 / 11 | S50: South 1 | T50: 1.21 | U50: 0.73 | V50: 1.98 | W50: 1.82 | X50: 2.28 | Y50: 1.22 | Z50: 1.12 | AA50: 1.76 | AB50: 2.28 | AC50: 0.59 | AD50: 1.17 | AH50: South 1 | AI50: 1.21 | AJ50: 1.07 | AK50: 1.10 | AL50: 2.04 | AM50: 2.18 | AN50: 0.88 | AO50: 0.95 | AP50: 1.16 | AQ50: 2.90 | AR50: 0.83 | AS50: 0.62 | AW50: Region | AX50: =IFERROR(SUM(T44:T54)/SUM(AI44:AI54),0) -> 96% | AY50: =IFERROR(SUM(U44:U54)/SUM(AJ44:AJ54),0) -> 75% | AZ50: =IFERROR(SUM(V44:V54)/SUM(AK44:AK54),0) -> 187% | BA50: =IFERROR(SUM(W44:W54)/SUM(AL44:AL54),0) -> 97% | BB50: =IFERROR(SUM(X44:X54)/SUM(AM44:AM54),0) -> 101% | BC50: =IFERROR(SUM(Y44:Y54)/SUM(AN44:AN54),0) -> 65% | BD50: 138% | BE50: 142% | BF50: 81% | BG50: 54% | BH50: 262% | BK50: 3 / 11
B51: South 2 | C51: 102% | D51: 157% | E51: 95% | F51: 107% | G51: 97% | H51: 0% | I51: 74% | J51: 84% | K51: 84% | L51: 0% | M51: 34% | P51: 3 / 11 | S51: South 2 | T51: 1.34 | U51: 0.72 | V51: 1.76 | W51: 2.20 | X51: 2.04 | Y51: 0.00 | Z51: 1.24 | AA51: 1.53 | AB51: 2.54 | AC51: 0.00 | AD51: 2.04 | AH51: South 2 | AI51: 1.37 | AJ51: 1.13 | AK51: 1.66 | AL51: 2.34 | AM51: 1.97 | AN51: 0.98 | AO51: 0.92 | AP51: 1.28 | AQ51: 2.14 | AR51: 0.88 | AS51: 0.69 | AW51: LFR | AX51: =IFERROR(AI57/T57,0) -> 100% | AY51: =IFERROR(AJ57/U57,0) -> 100% | AZ51: =IFERROR(AK57/V57,0) -> 108% | BA51: =IFERROR(AL57/W57,0) -> 151% | BB51: =IFERROR(AM57/X57,0) -> 254% | BC51: =IFERROR(AN57/Y57,0) -> 108% | BD51: 93% | BE51: 97% | BF51: 91% | BG51: 96% | BH51: 98% | BK51: 7 / 11
B52: South Total | C52: 101% | D52: 151% | E52: 74% | F52: 109% | G52: 96% | H52: 152% | I52: 80% | J52: 74% | K52: 105% | L52: 289% | M52: 41% | P52: 4 / 11 | S52: South Total | T52: =SUM(T50:T51) -> 2.55 | U52: 1.45 | V52: 3.73 | W52: 4.01 | X52: 4.32 | Y52: 1.22 | Z52: 2.35 | AA52: 3.30 | AB52: 4.82 | AC52: 0.59 | AD52: 3.21 | AE52: 0.00 | AF52: 0.00 | AH52: South Total | AI52: =SUM(AI50:AI51) -> 2.59 | AJ52: 2.19 | AK52: 2.76 | AL52: 4.38 | AM52: 4.15 | AN52: 1.85 | AO52: 1.87 | AP52: 2.44 | AQ52: 5.04 | AR52: 1.71 | AS52: 1.32 | AT52: 0.00 | AU52: 0.00
B53: West 1 | C53: 101% | D53: 190% | E53: 37% | F53: 151% | G53: 135% | H53: 227% | I53: 47% | J53: 81% | K53: 160% | L53: 196% | M53: 20% | P53: 1 / 11 | S53: West 1 | T53: 0.87 | U53: 0.28 | V53: 4.00 | W53: 2.28 | X53: 1.94 | Y53: 0.25 | Z53: 1.33 | AA53: 2.02 | AB53: 2.73 | AC53: 0.29 | AD53: 1.86 | AH53: West 1 | AI53: 0.88 | AJ53: 0.53 | AK53: 1.49 | AL53: 3.43 | AM53: 2.61 | AN53: 0.56 | AO53: 0.63 | AP53: 1.63 | AQ53: 4.38 | AR53: 0.57 | AS53: 0.37 | AW53: India | AX53: =IFERROR(SUM(AI44:AI58)/SUM(T44:T58),0) -> 100% | AY53: =IFERROR(SUM(AJ44:AJ58)/SUM(U44:U58),0) -> 118% | AZ53: =IFERROR(SUM(AK44:AK58)/SUM(V44:V58),0) -> 65% | BA53: =IFERROR(SUM(AL44:AL58)/SUM(W44:W58),0) -> 107% | BB53: =IFERROR(SUM(AM44:AM58)/SUM(X44:X58),0) -> 108% | BC53: =IFERROR(SUM(AN44:AN58)/SUM(Y44:Y58),0) -> 138% | BD53: 72% | BE53: 73% | BF53: 120% | BG53: 143% | BH53: 48% | BK53: 4 / 11
B54: West 2 | C54: 0% | D54: 0% | E54: 0% | F54: 0% | G54: 0% | H54: 0% | I54: 0% | J54: 0% | K54: 0% | L54: 0% | M54: 0% | P54: 0 / 11 | S54: West 2 | AH54: West 2 | AW54: SL | AX54: =IFERROR(AI60/T60,0) -> 0% | AY54: 0% | AZ54: =IFERROR(AK60/V60,0) -> 0% | BA54: =IFERROR(AL60/W60,0) -> 0% | BB54: =IFERROR(AM60/X60,0) -> 0% | BC54: =IFERROR(AN60/Y60,0) -> 0% | BD54: 0% | BE54: 0% | BF54: 0% | BG54: 0% | BH54: 0% | BK54: =COUNTIFS(AX54:BJ54,">"&94.5%,AX54:BJ54,"<"&120.4%)&" / "&COUNT(AX54:BJ54) -> 0 / 11
B55: West Total | C55: 101% | D55: 190% | E55: 37% | F55: 151% | G55: 135% | H55: 227% | I55: 47% | J55: 81% | K55: 160% | L55: 196% | M55: 20% | P55: 1 / 11 | S55: West Total | T55: =SUM(T53:T54) -> 0.87 | U55: =SUM(U53:U54) -> 0.28 | V55: 4.00 | W55: 2.28 | X55: 1.94 | Y55: 0.25 | Z55: 1.33 | AA55: 2.02 | AB55: 2.73 | AC55: 0.29 | AD55: 1.86 | AE55: 0.00 | AF55: 0.00 | AH55: West Total | AI55: =SUM(AI53:AI54) -> 0.88 | AJ55: =SUM(AJ53:AJ54) -> 0.53 | AK55: 1.49 | AL55: 3.43 | AM55: 2.61 | AN55: 0.56 | AO55: 0.63 | AP55: 1.63 | AQ55: 4.38 | AR55: 0.57 | AS55: 0.37 | AT55: 0.00 | AU55: 0.00
B56: Region Total | C56: 104% | D56: 136% | E56: 52% | F56: 107% | G56: 102% | H56: 158% | I56: 70% | J56: 72% | K56: 128% | L56: 187% | M56: 36% | P56: 3 / 11 | S56: Region Total | T56: =SUM(T55,T52,T49,T46) -> 5.68 | U56: =SUM(U55,U52,U49,U46) -> 3.73 | V56: 17.91 | W56: 12.35 | X56: 13.54 | Y56: 2.64 | Z56: 6.54 | AA56: 9.40 | AB56: 13.56 | AC56: 2.27 | AD56: 8.32 | AE56: 0.00 | AF56: 0.00 | AH56: Region Total | AI56: =SUM(AI55,AI52,AI49,AI46) -> 5.88 | AJ56: =SUM(AJ55,AJ52,AJ49,AJ46) -> 5.07 | AK56: 9.25 | AL56: 13.23 | AM56: 13.75 | AN56: 4.18 | AO56: 4.56 | AP56: 6.74 | AQ56: 17.32 | AR56: 4.25 | AS56: 3.01 | AT56: 0.00 | AU56: 0.00
B57: LFR | C57: 100% | D57: 100% | E57: 108% | F57: 151% | G57: 254% | H57: 108% | I57: 93% | J57: 97% | K57: 91% | L57: 96% | M57: 98% | P57: 7 / 11 | S57: LFR | T57: 8.41 | U57: 5.01 | V57: 9.91 | W57: 7.00 | X57: 1.36 | Y57: 3.52 | Z57: 3.63 | AA57: 3.43 | AB57: 4.00 | AC57: 3.53 | AD57: 3.53 | AH57: LFR | AI57: 8.41 | AJ57: 5.01 | AK57: 10.67 | AL57: 10.56 | AM57: 3.45 | AN57: 3.80 | AO57: 3.39 | AP57: 3.33 | AQ57: 3.65 | AR57: 3.38 | AS57: 3.47 | AW57: SLBD | AX57: =IFERROR(SUM(AI60:AI61)/SUM(T60:T61),0) -> 0% | AY57: 100% | AZ57: =IFERROR(SUM(AK60:AK61)/SUM(V60:V61),0) -> 200% | BA57: =IFERROR(SUM(AL60:AL61)/SUM(W60:W61),0) -> 144% | BB57: =IFERROR(SUM(AM60:AM61)/SUM(X60:X61),0) -> 193% | BC57: =IFERROR(SUM(AN60:AN61)/SUM(Y60:Y61),0) -> 102% | BD57: 132% | BE57: 320% | BF57: 57% | BG57: 100% | BH57: 68% | BK57: =COUNTIFS(AX57:BJ57,">"&94.5%,AX57:BJ57,"<"&120.4%)&" / "&COUNT(AX57:BJ57) -> 3 / 11
B58: Online | C58: 94% | D58: 94% | E58: 93% | F58: 32% | G58: 121% | H58: 100% | I58: 62% | J58: 56% | K58: 84% | L58: 98% | M58: 85% | P58: 2 / 11 | S58: Online | T58: 10.09 | U58: 4.79 | V58: 10.36 | W58: 4.21 | X58: 4.12 | Y58: 1.36 | Z58: 2.39 | AA58: 2.41 | AB58: 4.84 | AC58: 3.00 | AD58: 3.30 | AH58: Online | AI58: 9.44 | AJ58: 4.49 | AK58: 9.65 | AL58: 1.36 | AM58: 4.97 | AN58: 1.36 | AO58: 1.49 | AP58: 1.35 | AQ58: 4.05 | AR58: 2.93 | AS58: 2.80 | AW58: TTL | AX58: =IFERROR(AI63/T63,0) -> 96% | AY58: =IFERROR(AJ63/U63,0) -> 107% | AZ58: =IFERROR(AK63/V63,0) -> 79% | BA58: =IFERROR(AL63/W63,0) -> 107% | BB58: =IFERROR(AM63/X63,0) -> 121% | BC58: =IFERROR(AN63/Y63,0) -> 122% | BD58: 79% | BE58: 90% | BF58: 100% | BG58: 115% | BH58: 63% | BK58: =COUNTIFS(AX58:BJ58,">"&94.5%,AX58:BJ58,"<"&120.4%)&" / "&COUNT(AX58:BJ58) -> 5 / 11
B59: India Total | C59: 98% | D59: 108% | E59: 77% | F59: 107% | G59: 117% | H59: 124% | I59: 75% | J59: 75% | K59: 112% | L59: 120% | M59: 61% | P59: 6 / 11 | S59: India Total | T59: =SUM(T56:T58) -> 24.18 | U59: 13.53 | V59: 38.17 | W59: 23.56 | X59: 19.02 | Y59: 7.52 | Z59: 12.56 | AA59: 15.24 | AB59: 22.39 | AC59: 8.80 | AD59: 15.15 | AE59: 0.00 | AF59: 0.00 | AH59: India Total | AI59: =SUM(AI56:AI58) -> 23.73 | AJ59: 14.57 | AK59: 29.57 | AL59: 25.14 | AM59: 22.17 | AN59: 9.34 | AO59: 9.44 | AP59: 11.42 | AQ59: 25.02 | AR59: 10.56 | AS59: 9.28 | AT59: 0.00 | AU59: 0.00
B60: Sri Lanka | C60: 0% | D60: 0% | E60: 0% | F60: 0% | G60: 0% | H60: 0% | I60: 0% | J60: 0% | K60: 0% | L60: 0% | M60: 0% | P60: 0 / 11 | S60: SL | T60: 0.00 | U60: 0.00 | V60: 0.00 | W60: 0.00 | X60: 0.00 | Y60: 0.00 | Z60: 0.00 | AA60: 0.00 | AB60: 0.00 | AC60: 0.00 | AD60: 0.00 | AH60: Sri Lanka | AI60: 0.00 | AJ60: 0.00 | AK60: 0.00 | AL60: 0.00 | AM60: 0.00 | AN60: 0.00 | AO60: 0.00 | AP60: 0.00 | AQ60: 0.00 | AR60: 0.00 | AS60: 0.00
B61: Bangladesh | C61: 0% | D61: 100% | E61: 200% | F61: 144% | G61: 193% | H61: 102% | I61: 132% | J61: 320% | K61: 57% | L61: 100% | M61: 68% | P61: 3 / 11 | S61: BD | T61: 0.50 | U61: 0.95 | V61: 0.50 | W61: 0.50 | X61: 1.30 | Y61: 1.00 | Z61: 1.00 | AA61: 1.00 | AB61: 5.81 | AC61: 3.00 | AD61: 5.05 | AH61: Bangladesh | AI61: 0.00 | AJ61: 0.95 | AK61: 1.00 | AL61: 0.72 | AM61: 2.51 | AN61: 1.02 | AO61: 1.32 | AP61: 3.20 | AQ61: 3.30 | AR61: 3.01 | AS61: 3.44
B62: SLBD | C62: =IFERROR(AI62/T62,0) -> 0% | D62: 100% | E62: 200% | F62: 144% | G62: 193% | H62: 102% | I62: 132% | J62: 320% | K62: 57% | L62: 100% | M62: 68% | P62: 3 / 11 | S62: SLBD | T62: =SUM(T60:T61) -> 0.50 | U62: =SUM(U60:U61) -> 0.95 | V62: 0.50 | W62: 0.50 | X62: 1.30 | Y62: 1.00 | Z62: 1.00 | AA62: 1.00 | AB62: 5.81 | AC62: 3.00 | AD62: 5.05 | AE62: 0.00 | AF62: 0.00 | AH62: SLBD | AI62: =SUM(AI60:AI61) -> 0.00 | AJ62: =SUM(AJ60:AJ61) -> 0.95 | AK62: 1.00 | AL62: 0.72 | AM62: 2.51 | AN62: 1.02 | AO62: 1.32 | AP62: 3.20 | AQ62: 3.30 | AR62: 3.01 | AS62: 3.44 | AT62: 0.00 | AU62: 0.00
B63: Overall | C63: 96% | D63: 107% | E63: 79% | F63: 107% | G63: 121% | H63: 122% | I63: 79% | J63: 90% | K63: 100% | L63: 115% | M63: 63% | P63: 5 / 11 | S63: Consumer | T63: =SUM(T59:T61) -> 24.68 | U63: =SUM(U59:U61) -> 14.48 | V63: 38.67 | W63: 24.06 | X63: 20.32 | Y63: 8.52 | Z63: 13.56 | AA63: 16.24 | AB63: 28.20 | AC63: 11.80 | AD63: 20.20 | AE63: 0.00 | AF63: 0.00 | AH63: Consumer | AI63: =SUM(AI59:AI61) -> 23.73 | AJ63: =SUM(AJ59:AJ61) -> 15.52 | AK63: 30.57 | AL63: 25.86 | AM63: 24.68 | AN63: 10.35 | AO63: 10.76 | AP63: 14.62 | AQ63: 28.32 | AR63: 13.56 | AS63: 12.72 | AT63: 0.00 | AU63: 0.00

Sheet Predictability Premium Final..
S1: 2018-Q1
S2: Sellin | T2: W01 | U2: W02 | V2: W03 | W2: W04 | X2: W05 | Y2: W06 | Z2: W07 | AA2: W08 | AB2: W09 | AC2: W10 | AD2: W11 | AE2: W12 | AF2: W13 | AG2: MET
R3: Act | S3: FD Bill | T3: 0.9 | U3: 3.1 | V3: 3.8 | W3: 10.4 | X3: 3.7 | Y3: 5.1 | Z3: 7.3 | AA3: 20.0 | AB3: 19.0 | AC3: 3.4 | AD3: 13.6 | AE3: 26.6 | AF3: 0.0
S4: ZD Bill | T4: 0.2 | U4: 1.0 | V4: 0.1 | W4: 0.1 | X4: 0.0 | Y4: 0.0 | Z4: 0.0 | AA4: 0.0 | AB4: 0.0 | AC4: 0.4 | AD4: 1.3 | AE4: 1.9 | AF4: 0.0
S5: TTL | T5: =SUM(T3:T4) -> 1.0 | U5: =SUM(U3:U4) -> 4.0 | V5: 3.9 | W5: 10.4 | X5: 3.7 | Y5: 5.1 | Z5: 7.3 | AA5: 20.0 | AB5: 19.0 | AC5: 3.8 | AD5: 14.9 | AE5: 28.5 | AF5: 0.0
R6: Commit | S6: FD | T6: 0.7 | U6: 0.7 | V6: 3.0 | W6: 5.0 | X6: 2.3 | Y6: 3.0 | Z6: 7.7 | AA6: 15.0 | AB6: 18.3 | AC6: 2.0 | AD6: 10.6 | AE6: 30.0
S7: ZD | T7: 0.1 | U7: 0.0 | V7: 0.2 | W7: 0.1 | X7: 0.0 | Y7: 0.0 | Z7: 0.0 | AA7: 0.0 | AB7: 0.0 | AC7: 0.0 | AD7: 8.0 | AE7: 0.0
S8: TTL | T8: =SUM(T6:T7) -> 0.7 | U8: 0.7 | V8: 3.2 | W8: 5.1 | X8: 2.3 | Y8: 3.0 | Z8: 7.7 | AA8: 15.0 | AB8: 18.3 | AC8: 2.0 | AD8: 18.6 | AE8: 30.0 | AF8: 0.0
R9: FD Pred. | T9: =IFERROR(T3/T6,0) -> 132% | U9: 441% | V9: 128% | W9: 207% | X9: 163% | Y9: 170% | Z9: 95% | AA9: 133% | AB9: 104% | AC9: 170% | AD9: 128% | AE9: 89% | AG9: =COUNTIFS(T9:AF9,">"&94.5%,T9:AF9,"<"&120.4%)&" / "&COUNT(T9:AF9) -> 2 / 12
R10: ZD Pred. | T10: 331% | U10: 0% | V10: 49% | W10: 160% | X10: 0% | Y10: 0% | Z10: 0% | AA10: 0% | AB10: 0% | AC10: 0% | AD10: =IFERROR(AD4/AD7,0) -> 16% | AE10: =IFERROR(AE4/AE7,0) -> 0% | AG10: =COUNTIFS(T10:AF10,">"&94.5%,T10:AF10,"<"&120.4%)&" / "&COUNT(T10:AF10) -> 0 / 12
R11: Overall | S11: Lin. | T11: 147% | U11: 578% | V11: 123% | W11: 207% | X11: 163% | Y11: 170% | Z11: 95% | AA11: 133% | AB11: 104% | AC11: 190% | AD11: =IFERROR(AD5/AD8,0) -> 80% | AE11: =IFERROR(AE5/AE8,0) -> 95% | AG11: =COUNTIFS(T11:AF11,">"&94.5%,T11:AF11,"<"&120.4%)&" / "&COUNT(T11:AF11) -> 3 / 12
B16: Cons | C16: W1 | D16: W2 | E16: W3 | F16: W4 | G16: W5 | H16: W6 | I16: W7 | J16: W8 | K16: W9 | L16: W10 | M16: W11 | N16: W12 | O16: W13 | P16: MET
B17: Sellin | C17: =T19 -> 0% | D17: 0% | E17: 0% | F17: 0% | G17: 0% | H17: 0% | I17: 0% | J17: 0% | K17: 0% | L17: 0% | M17: 0% | N17: 0% | P17: =COUNTIFS(C17:O17,">"&95%,C17:O17,"<"&120%)&" / "&COUNT(C17:O17) -> 0 / 12
B18: Sellthru | C18: =C40 -> 101% | D18: 153% | E18: =E40 -> 131% | F18: 89% | G18: =G40 -> 291% | H18: 255% | I18: 80% | J18: =J40 -> 71% | K18: 143% | L18: =L40 -> 429% | M18: 79% | P18: =COUNTIFS(C18:O18,">"&95%,C18:O18,"<"&120%)&" / "&COUNT(C18:O18) -> 1 / 11
B19: Sellout | C19: =C61 -> 100% | D19: 110% | E19: =E61 -> 90% | F19: 143% | G19: =G61 -> 451% | H19: 156% | I19: 71% | J19: =J61 -> 82% | K19: 83% | L19: =L61 -> 166% | M19: 79% | P19: =COUNTIFS(C19:O19,">"&95%,C19:O19,"<"&120%)&" / "&COUNT(C19:O19) -> 2 / 11
B21: Sellthru | C21: W01 | D21: W02 | E21: W03 | F21: W04 | G21: W05 | H21: W06 | I21: W07 | J21: W08 | K21: W09 | L21: W10 | M21: W11 | N21: W12 | O21: W13 | P21: MET | R21: Commit | S21: Sellthru | T21: W01 | U21: W02 | V21: W03 | W21: W04 | X21: W05 | Y21: W06 | Z21: W07 | AA21: W08 | AB21: W09 | AC21: W10 | AD21: W11 | AE21: W12 | AF21: W13 | AG21: Act | AH21: Sellthru | AI21: W01 | AJ21: W02 | AK21: W03 | AL21: W04 | AM21: W05 | AN21: W06 | AO21: W07 | AP21: W08 | AQ21: W09 | AR21: W10 | AS21: W11 | AT21: W12 | AU21: W13 | AW21: ST | AX21: W01 | AY21: W02 | AZ21: W03 | BA21: W04 | BB21: W05 | BC21: W06 | BD21: W07 | BE21: W08 | BF21: W09 | BG21: W10 | BH21: W11 | BI21: W12 | BJ21: W13 | BK21: MET
B22: East 1 | C22: =IFERROR(AI22/T22,0) -> 100% | D22: =IFERROR(AJ22/U22,0) -> 105% | E22: 184% | F22: 71% | G22: 221% | H22: =IFERROR(AN22/Y22,0) -> 100% | I22: =IFERROR(AO22/Z22,0) -> 56% | J22: 53% | K22: 62% | L22: 2578% | M22: 10% | P22: =COUNTIFS(C22:O22,">"&95%,C22:O22,"<"&120%)&" / "&COUNT(C22:O22) -> 3 / 11 | S22: East 1 | T22: 0.02 | U22: 0.10 | V22: 0.20 | W22: 0.33 | X22: 0.32 | Y22: 0.01 | Z22: 0.10 | AA22: 0.23 | AB22: 0.60 | AC22: 0.02 | AD22: 0.06 | AH22: East 1 | AI22: 0.02 | AJ22: 0.11 | AK22: 0.37 | AL22: 0.24 | AM22: 0.71 | AN22: 0.01 | AO22: 0.06 | AP22: 0.12 | AQ22: 0.37 | AR22: 0.46 | AS22: 0.01 | AW22: East | AX22: =SUM(T22:T23)/SUM(AI22:AI23) -> 35% | AY22: =SUM(U22:U22)/SUM(AJ22:AJ23) -> 16% | AZ22: =SUM(V22:V23)/SUM(AK22:AK23) -> 121% | BA22: 82% | BB22: 27% | BC22: 130% | BD22: 155% | BE22: 183% | BK22: =COUNTIFS(AX22:BJ22,">"&94.5%,AX22:BJ22,"<"&120.4%)&" / "&COUNT(AX22:BJ22) -> 0 / 8
B23: East 2 | C23: =IFERROR(AI23/T23,0) -> 0% | D23: =IFERROR(AJ23/U22,0) -> 520% | E23: =IFERROR(AK23/V22,0) -> 219% | F23: 101% | G23: =IFERROR(AM23/X22,0) -> 219% | H23: =IFERROR(AN23/Y22,0) -> 82% | I23: =IFERROR(AO23/Z22,0) -> 55% | J23: 30% | K23: 44% | L23: 178% | M23: 138% | P23: 1 / 11 | S23: East 2 | T23: 0.00 | U23: 0.47 | V23: 0.79 | W23: 0.14 | X23: 0.07 | Y23: 0.02 | Z23: 0.07 | AA23: 0.12 | AB23: 0.38 | AC23: 0.05 | AD23: 0.15 | AH23: East 2 | AI23: 0.04 | AJ23: 0.54 | AK23: 0.45 | AL23: 0.33 | AM23: 0.70 | AN23: 0.01 | AO23: 0.06 | AP23: 0.07 | AQ23: 0.26 | AR23: 0.03 | AS23: 0.08 | AW23: North | AX23: =SUM(T25:T26)/SUM(AI25:AI26) -> 100% | AY23: =SUM(U25:U26)/SUM(AJ25:AJ26) -> 84% | AZ23: 67% | BA23: 80% | BB23: 40% | BC23: 99% | BD23: 138% | BE23: 194% | BK23: 2 / 8
B24: East Total | C24: 285% | D24: 113% | E24: =IFERROR(AK24/V24,0) -> 83% | F24: =IFERROR(AL24/W24,0) -> 122% | G24: =IFERROR(AM24/X24,0) -> 365% | H24: =IFERROR(AN24/Y24,0) -> 77% | I24: =IFERROR(AO24/Z24,0) -> 65% | J24: 55% | K24: 65% | L24: 719% | M24: 42% | P24: 1 / 11 | S24: East Total | T24: =SUM(T22:T23) -> 0.02 | U24: =SUM(U22:U23) -> 0.57 | V24: 0.99 | W24: 0.47 | X24: 0.39 | Y24: 0.03 | Z24: 0.17 | AA24: 0.34 | AB24: 0.98 | AC24: 0.07 | AD24: 0.21 | AE24: 0.00 | AF24: 0.00 | AH24: East Total | AI24: =SUM(AI22:AI23) -> 0.06 | AJ24: =SUM(AJ22:AJ23) -> 0.65 | AK24: 0.82 | AL24: 0.57 | AM24: 1.41 | AN24: 0.02 | AO24: 0.11 | AP24: 0.19 | AQ24: 0.63 | AR24: 0.50 | AS24: 0.09 | AT24: 0.00 | AU24: 0.00
B25: North 1 | C25: 100% | D25: 135% | E25: 172% | F25: 114% | G25: 173% | H25: 103% | I25: 40% | J25: 62% | K25: 82% | L25: 46% | M25: 27% | P25: 3 / 11 | S25: North 1 | T25: 0.12 | U25: 0.26 | V25: 0.53 | W25: 0.66 | X25: 1.26 | Y25: 0.16 | Z25: 0.31 | AA25: 0.71 | AB25: 1.74 | AC25: 0.19 | AD25: 0.33 | AH25: North 1 | AI25: 0.12 | AJ25: 0.36 | AK25: 0.91 | AL25: 0.75 | AM25: 2.18 | AN25: 0.16 | AO25: 0.12 | AP25: 0.44 | AQ25: 1.44 | AR25: 0.09 | AS25: 0.09 | AW25: south | AX25: =SUM(T28:T29)/SUM(AI28:AI29) -> 100% | AY25: 89% | AZ25: 66% | BA25: 121% | BB25: 19% | BC25: 0% | BD25: 180% | BE25: 117% | BK25: 2 / 8
B26: North 2 | C26: 100% | D26: 111% | E26: 131% | F26: 145% | G26: 1118% | H26: 100% | I26: 127% | J26: 36% | K26: 114% | L26: 169% | M26: 22% | P26: 4 / 11 | S26: North 2 | T26: 0.09 | U26: 0.54 | V26: 0.65 | W26: 0.38 | X26: 0.11 | Y26: 0.14 | Z26: 0.19 | AA26: 0.47 | AB26: 0.91 | AC26: 0.08 | AD26: 0.32 | AH26: North 2 | AI26: 0.09 | AJ26: 0.60 | AK26: 0.85 | AL26: 0.55 | AM26: 1.19 | AN26: 0.14 | AO26: 0.24 | AP26: 0.17 | AQ26: 1.04 | AR26: 0.13 | AS26: 0.07 | AW26: west | AX26: =SUM(T31:T31)/SUM(AI31:AI31) -> 100% | AY26: 94% | AZ26: 69% | BA26: 154% | BB26: 28% | BC26: 0% | BD26: 138% | BE26: 115% | BK26: 2 / 8
B27: North Total | C27: 100% | D27: 119% | E27: 149% | F27: 125% | G27: 247% | H27: 101% | I27: 73% | J27: 52% | K27: 93% | L27: 81% | M27: 25% | P27: 3 / 11 | S27: North Total | T27: =SUM(T25:T26) -> 0.20 | U27: 0.80 | V27: 1.18 | W27: 1.04 | X27: 1.36 | Y27: 0.30 | Z27: 0.50 | AA27: 1.18 | AB27: 2.66 | AC27: 0.27 | AD27: 0.65 | AE27: 0.00 | AF27: 0.00 | AH27: North Total | AI27: =SUM(AI25:AI26) -> 0.20 | AJ27: 0.95 | AK27: 1.76 | AL27: 1.30 | AM27: 3.37 | AN27: 0.31 | AO27: 0.36 | AP27: 0.61 | AQ27: 2.48 | AR27: 0.22 | AS27: 0.16 | AT27: 0.00 | AU27: 0.00
B28: South 1 | C28: 100% | D28: 119% | E28: 144% | F28: 98% | G28: 681% | H28: 0% | I28: 69% | J28: 93% | K28: 277% | L28: 0% | M28: 32% | P28: 3 / 11 | S28: South 1 | T28: 0.12 | U28: 0.21 | V28: 0.98 | W28: 0.78 | X28: 0.22 | Y28: 0.00 | Z28: 0.72 | AA28: 0.61 | AB28: 0.81 | AC28: 0.00 | AD28: 0.75 | AH28: South 1 | AI28: 0.12 | AJ28: 0.25 | AK28: 1.40 | AL28: 0.77 | AM28: 1.50 | AN28: 0.23 | AO28: 0.50 | AP28: 0.57 | AQ28: 2.24 | AR28: 0.17 | AS28: 0.24 | AW28: Region | AX28: =SUM(T22:T31)/SUM(AI22:AI31) -> 93% | AY28: 88% | AZ28: 75% | BA28: 103% | BB28: 29% | BC28: 43% | BD28: 161% | BE28: 146% | BK28: 1 / 8
B29: South 2 | C29: 100% | D29: 110% | E29: 161% | F29: 70% | G29: 434% | H29: 0% | I29: 41% | J29: 77% | K29: 120% | L29: 0% | M29: 30% | P29: 3 / 11 | S29: South 2 | T29: 0.05 | U29: 0.66 | V29: 0.70 | W29: 1.02 | X29: 0.38 | Y29: 0.00 | Z29: 0.67 | AA29: 0.51 | AB29: 1.51 | AC29: 0.00 | AD29: 0.70 | AH29: South 2 | AI29: 0.05 | AJ29: 0.73 | AK29: 1.12 | AL29: 0.72 | AM29: 1.63 | AN29: 0.13 | AO29: 0.27 | AP29: 0.40 | AQ29: 1.81 | AR29: 0.17 | AS29: 0.21 | AW29: LFR | AX29: =AI34/T34 -> 100% | AY29: 190% | AZ29: 171% | BA29: 46% | BB29: 1178% | BC29: 254% | BD29: 205% | BE29: 106% | BK29: 2 / 8
B30: South Total | C30: 100% | D30: 112% | E30: 151% | F30: 82% | G30: 526% | H30: 0% | I30: 56% | J30: 86% | K30: 174% | L30: 0% | M30: 31% | P30: 2 / 11 | S30: South Total | T30: =SUM(T28:T29) -> 0.17 | U30: 0.88 | V30: 1.67 | W30: 1.80 | X30: 0.60 | Y30: 0.00 | Z30: 1.38 | AA30: 1.13 | AB30: 2.32 | AC30: 0.00 | AD30: 1.45 | AE30: 0.00 | AF30: 0.00 | AH30: South Total | AI30: =SUM(AI28:AI29) -> 0.17 | AJ30: 0.98 | AK30: 2.53 | AL30: 1.49 | AM30: 3.13 | AN30: 0.36 | AO30: 0.77 | AP30: 0.96 | AQ30: 4.05 | AR30: 0.34 | AS30: 0.45 | AT30: 0.00 | AU30: 0.00
B31: West 1 | C31: 100% | D31: 106% | E31: 145% | F31: 65% | G31: 363% | H31: 0% | I31: 72% | J31: 87% | K31: 88% | L31: 0% | M31: 16% | P31: 2 / 11 | S31: West 1 | T31: 0.16 | U31: 0.96 | V31: 0.64 | W31: 0.98 | X31: 0.82 | Y31: 0.00 | Z31: 0.64 | AA31: 0.61 | AB31: 1.51 | AC31: 0.00 | AD31: 0.67 | AH31: West 1 | AI31: 0.16 | AJ31: 1.02 | AK31: 0.93 | AL31: 0.64 | AM31: 2.96 | AN31: 0.17 | AO31: 0.46 | AP31: 0.53 | AQ31: 1.33 | AR31: 0.25 | AS31: 0.11 | AW31: India | AX31: =SUM(AI22:AI35)/SUM(T22:T35) -> 102% | AY31: 133% | AZ31: 133% | BA31: 92% | BB31: 323% | BC31: 256% | BD31: 70% | BE31: 71% | BK31: =COUNTIFS(AX31:BJ31,">"&94.5%,AX31:BJ31,"<"&120.4%)&" / "&COUNT(AX31:BJ31) -> 1 / 8
B32: West Total | C32: 100% | D32: 106% | E32: 145% | F32: 65% | G32: 363% | H32: 0% | I32: 72% | J32: 87% | K32: 88% | L32: 0% | M32: 16% | P32: 2 / 11 | S32: West Total | T32: =SUM(T31:T31) -> 0.16 | U32: =SUM(U31:U31) -> 0.96 | V32: =SUM(V31:V31) -> 0.64 | W32: 0.98 | X32: 0.82 | Y32: 0.00 | Z32: 0.64 | AA32: 0.61 | AB32: 1.51 | AC32: 0.00 | AD32: 0.67 | AE32: 0.00 | AF32: 0.00 | AH32: West Total | AI32: =SUM(AI31:AI31) -> 0.16 | AJ32: 1.02 | AK32: 0.93 | AL32: 0.64 | AM32: 2.96 | AN32: 0.17 | AO32: 0.46 | AP32: 0.53 | AQ32: 1.33 | AR32: 0.25 | AS32: 0.11 | AT32: 0.00 | AU32: 0.00
B33: Region Total | C33: 107% | D33: 112% | E33: 135% | F33: 93% | G33: 344% | H33: 258% | I33: 63% | J33: 70% | K33: 114% | L33: 385% | M33: 27% | P33: 3 / 11 | S33: Region Total | T33: =SUM(T32,T30,T27,T24) -> 0.55 | U33: 3.21 | V33: 4.48 | W33: 4.29 | X33: 3.16 | Y33: 0.33 | Z33: 2.70 | AA33: 3.26 | AB33: 7.46 | AC33: 0.34 | AD33: 2.97 | AE33: 0.00 | AF33: 0.00 | AH33: Region Total | AI33: =SUM(AI32,AI30,AI27,AI24) -> 0.59 | AJ33: 3.60 | AK33: 6.03 | AL33: 4.00 | AM33: 10.86 | AN33: 0.85 | AO33: 1.71 | AP33: 2.29 | AQ33: 8.48 | AR33: 1.31 | AS33: 0.80 | AT33: 0.00 | AU33: 0.00
B34: LFR | C34: 100% | D34: 190% | E34: 171% | F34: 46% | G34: 1178% | H34: 254% | I34: 205% | J34: 106% | K34: 680% | L34: 1184% | M34: 260% | P34: 2 / 11 | S34: LFR | T34: 3.00 | U34: 3.50 | V34: 0.15 | W34: 0.10 | X34: 0.08 | Y34: 0.80 | Z34: 0.40 | AA34: 1.35 | AB34: 0.82 | AC34: 0.20 | AD34: 0.70 | AH34: LFR | AI34: 3.00 | AJ34: 6.66 | AK34: 0.26 | AL34: 0.05 | AM34: 0.95 | AN34: 2.03 | AO34: 0.82 | AP34: 1.43 | AQ34: 5.59 | AR34: 2.37 | AS34: 1.82 | AW34: SLBD | AX34: =IFERROR(SUM(AI37:AI38)/SUM(T37:T38),0) -> 0% | AY34: 0% | AZ34: 0% | BA34: 0% | BB34: 0% | BC34: 0% | BD34: 0% | BE34: 0% | BK34: =COUNTIFS(AX34:BJ34,">"&94.5%,AX34:BJ34,"<"&120.4%)&" / "&COUNT(AX34:BJ34) -> 0 / 8
B35: Online | C35: 100% | D35: 100% | E35: 38% | F35: 42% | G35: 18% | H35: 100% | I35: 50% | J35: -33% | K35: 58% | L35: 120% | M35: 305% | P35: 4 / 11 | S35: Online | T35: -0.04 | U35: -0.01 | V35: 0.25 | W35: 0.31 | X35: 0.87 | Y35: -0.00 | Z35: 0.21 | AA35: 0.43 | AB35: 2.63 | AC35: 0.44 | AD35: 0.13 | AH35: Online | AI35: -0.04 | AJ35: -0.01 | AK35: 0.10 | AL35: 0.13 | AM35: 0.16 | AN35: -0.00 | AO35: 0.11 | AP35: -0.14 | AQ35: 1.54 | AR35: 0.53 | AS35: 0.38 | AW35: TTL | AX35: =AI40/T40 -> 101% | AY35: 153% | AZ35: 131% | BA35: 89% | BB35: 291% | BC35: 255% | BD35: 80% | BE35: 71% | BK35: =COUNTIFS(AX35:BJ35,">"&94.5%,AX35:BJ35,"<"&120.4%)&" / "&COUNT(AX35:BJ35) -> 1 / 8
B36: India Total | C36: 101% | D36: 153% | E36: 131% | F36: 89% | G36: 291% | H36: 255% | I36: 80% | J36: 71% | K36: 143% | L36: 429% | M36: 79% | P36: 1 / 11 | S36: India Total | T36: =SUM(T33:T35) -> 3.52 | U36: =SUM(U33:U35) -> 6.69 | V36: 4.88 | W36: 4.70 | X36: 4.11 | Y36: 1.13 | Z36: 3.31 | AA36: 5.04 | AB36: 10.92 | AC36: 0.98 | AD36: 3.80 | AE36: 0.00 | AF36: 0.00 | AH36: India Total | AI36: =SUM(AI33:AI35) -> 3.56 | AJ36: =SUM(AJ33:AJ35) -> 10.25 | AK36: 6.38 | AL36: 4.17 | AM36: 11.97 | AN36: 2.88 | AO36: 2.63 | AP36: 3.58 | AQ36: 15.61 | AR36: 4.20 | AS36: 3.01 | AT36: 0.00 | AU36: 0.00
B37: Sri Lanka | C37: 0% | D37: 0% | E37: 0% | F37: 0% | G37: 0% | H37: 0% | I37: 0% | J37: 0% | K37: 0% | L37: 0% | M37: 0% | P37: 0 / 11 | S37: SL | T37: 0.00 | U37: 0.00 | V37: 0.00 | W37: 0.00 | X37: 0.00 | Y37: 0.00 | Z37: 0.00 | AA37: 0.00 | AB37: 0.00 | AC37: 0.00 | AD37: 0.00 | AH37: Sri Lanka | AI37: 0.00 | AJ37: 0.00 | AK37: 0.00 | AL37: 0.00 | AM37: 0.00 | AN37: 0.00 | AO37: 0.00 | AP37: 0.00 | AQ37: 0.00 | AR37: 0.00 | AS37: 0.00
B38: Bangladesh | C38: 0% | D38: 0% | E38: 0% | F38: 0% | G38: 0% | H38: 0% | I38: 0% | J38: 0% | K38: 0% | L38: 0% | M38: 0% | P38: 0 / 11 | S38: BD | T38: 0.00 | U38: 0.00 | V38: 0.00 | W38: 0.00 | X38: 0.00 | Y38: 0.00 | Z38: 0.00 | AA38: 0.00 | AB38: 0.00 | AC38: 0.00 | AD38: 0.00 | AH38: Bangladesh | AI38: 0.00 | AJ38: 0.00 | AK38: 0.00 | AL38: 0.00 | AM38: 0.00 | AN38: 0.00 | AO38: 0.00 | AP38: 0.00 | AQ38: 0.00 | AR38: 0.00 | AS38: 0.00
B39: SLBD | C39: =IFERROR(AI39/T39,0) -> 0% | D39: 0% | E39: 0% | F39: 0% | G39: 0% | H39: 0% | I39: 0% | J39: 0% | K39: 0% | L39: 0% | M39: 0% | P39: 0 / 11 | S39: SLBD | T39: =SUM(T37:T38) -> 0.00 | U39: =SUM(U37:U38) -> 0.00 | V39: 0.00 | W39: 0.00 | X39: 0.00 | Y39: 0.00 | Z39: 0.00 | AA39: 0.00 | AB39: 0.00 | AC39: 0.00 | AD39: 0.00 | AE39: 0.00 | AF39: 0.00 | AH39: SLBD | AI39: =SUM(AI37:AI38) -> 0.00 | AJ39: 0.00 | AK39: 0.00 | AL39: 0.00 | AM39: 0.00 | AN39: 0.00 | AO39: 0.00 | AP39: 0.00 | AQ39: 0.00 | AR39: 0.00 | AS39: 0.00 | AT39: 0.00 | AU39: 0.00
B40: Overall | C40: 101% | D40: 153% | E40: 131% | F40: 89% | G40: 291% | H40: 255% | I40: 80% | J40: 71% | K40: 143% | L40: 429% | M40: 79% | P40: 1 / 11 | S40: Consumer | T40: =SUM(T36:T38) -> 3.52 | U40: =SUM(U36:U38) -> 6.69 | V40: 4.88 | W40: 4.70 | X40: 4.11 | Y40: 1.13 | Z40: 3.31 | AA40: 5.04 | AB40: 10.92 | AC40: 0.98 | AD40: 3.80 | AE40: 0.00 | AF40: 0.00 | AH40: Consumer | AI40: =SUM(AI36:AI38) -> 3.56 | AJ40: 10.25 | AK40: 6.38 | AL40: 4.17 | AM40: 11.97 | AN40: 2.88 | AO40: 2.63 | AP40: 3.58 | AQ40: 15.61 | AR40: 4.20 | AS40: 3.01 | AT40: 0.00 | AU40: 0.00
B42: Sellout | C42: W01 | D42: W02 | E42: W03 | F42: W04 | G42: W05 | H42: W06 | I42: W07 | J42: W08 | K42: W09 | L42: W10 | M42: W11 | N42: W12 | O42: W13 | P42: MET | R42: Commit | S42: Sellout | T42: W01 | U42: W02 | V42: W03 | W42: W04 | X42: W05 | Y42: W06 | Z42: W07 | AA42: W08 | AB42: W09 | AC42: W10 | AD42: W11 | AE42: W12 | AF42: W13 | AH42: Sellout | AI42: W01 | AJ42: W02 | AK42: W03 | AL42: W04 | AM42: W05 | AN42: W06 | AO42: W07 | AP42: W08 | AQ42: W09 | AR42: W10 | AS42: W11 | AT42: W12 | AU42: W13 | AW42: ST | AX42: W01 | AY42: W02 | AZ42: W03 | BA42: W04 | BB42: W05 | BC42: W06 | BD42: W07 | BE42: W08 | BF42: W09 | BG42: W10 | BH42: W11 | BI42: W12 | BJ42: W13 | BK42: MET
B43: East 1 | C43: =IFERROR(AI43/T43,0) -> 100% | D43: 187% | E43: =IFERROR(AK43/V43,0) -> 91% | F43: =IFERROR(AL43/W43,0) -> 89% | G43: =IFERROR(AM43/X43,0) -> 460% | H43: =IFERROR(AN43/Y43,0) -> 178% | I43: =IFERROR(AO43/Z43,0) -> 58% | J43: 41% | K43: 37% | L43: 71% | M43: 85% | P43: =COUNTIFS(C43:O43,">"&95%,C43:O43,"<"&120%)&" / "&COUNT(C43:O43) -> 1 / 11 | S43: East 1 | T43: 0.07 | U43: 0.08 | V43: 0.29 | W43: 0.22 | X43: 0.07 | Y43: 0.05 | Z43: 0.16 | AA43: 0.27 | AB43: 0.50 | AC43: 0.09 | AD43: 0.10 | AH43: East 1 | AI43: 0.07 | AJ43: 0.14 | AK43: 0.26 | AL43: 0.20 | AM43: 0.34 | AN43: 0.08 | AO43: 0.09 | AP43: 0.11 | AQ43: 0.19 | AR43: 0.06 | AS43: 0.08 | AW43: East | AX43: =SUM(T43:T44)/SUM(AI43:AI44) -> 20% | AY43: 73% | AZ43: 126% | BA43: 76% | BB43: 15% | BC43: 92% | BD43: 200% | BE43: 220% | BK43: =COUNTIFS(AX43:BJ43,">"&94.5%,AX43:BJ43,"<"&120.4%)&" / "&COUNT(AX43:BJ43) -> 0 / 8
B44: East 2 | C44: 0% | D44: 103% | E44: 73% | F44: 186% | G44: 1128% | H44: 85% | I44: 43% | J44: 50% | K44: 50% | L44: 140% | M44: 49% | P44: 1 / 11 | S44: East 2 | T44: 0.00 | U44: 0.12 | V44: 0.56 | W44: 0.18 | X44: 0.03 | Y44: 0.13 | Z44: 0.17 | AA44: 0.21 | AB44: 0.46 | AC44: 0.10 | AD44: 0.17 | AH44: East 2 | AI44: 0.27 | AJ44: 0.12 | AK44: 0.41 | AL44: 0.34 | AM44: 0.34 | AN44: 0.11 | AO44: 0.07 | AP44: 0.11 | AQ44: 0.23 | AR44: 0.14 | AS44: 0.08 | AW44: North | AX44: =SUM(T46:T47)/SUM(AI46:AI47) -> 95% | AY44: 66% | AZ44: 137% | BA44: 59% | BB44: 25% | BC44: 77% | BD44: 142% | BE44: 154% | BK44: 1 / 8
B45: East Total | C45: 497% | D45: 136% | E45: 79% | F45: 132% | G45: 655% | H45: 109% | I45: 50% | J45: 45% | K45: 43% | L45: 107% | M45: 62% | P45: 2 / 11 | S45: East Total | T45: =SUM(T43:T44) -> 0.07 | U45: 0.20 | V45: 0.85 | W45: 0.41 | X45: 0.10 | Y45: 0.18 | Z45: 0.33 | AA45: 0.48 | AB45: =SUM(AB43:AB44) -> 0.95 | AC45: =SUM(AC43:AC44) -> 0.19 | AD45: 0.27 | AE45: 0.0 | AF45: 0.0 | AH45: East Total | AI45: =SUM(AI43:AI44) -> 0.33 | AJ45: 0.27 | AK45: 0.67 | AL45: 0.54 | AM45: 0.68 | AN45: 0.19 | AO45: 0.17 | AP45: 0.22 | AQ45: 0.41 | AR45: 0.20 | AS45: 0.17 | AT45: 0.00 | AU45: 0.0
B46: North 1 | C46: 103% | D46: 196% | E46: 101% | F46: 156% | G46: 459% | H46: 124% | I46: 75% | J46: 63% | K46: 53% | L46: 90% | M46: 105% | P46: 3 / 11 | S46: North 1 | T46: 0.48 | U46: 0.20 | V46: 0.58 | W46: 0.66 | X46: 0.26 | Y46: 0.19 | Z46: 0.42 | AA46: 0.53 | AB46: 1.34 | AC46: 0.38 | AD46: 0.19 | AH46: North 1 | AI46: 0.50 | AJ46: 0.39 | AK46: 0.58 | AL46: 1.03 | AM46: 1.20 | AN46: 0.23 | AO46: 0.32 | AP46: 0.34 | AQ46: 0.72 | AR46: 0.34 | AS46: 0.20 | AW46: south | AX46: =SUM(T49:T50)/SUM(AI49:AI50) -> 99% | AY46: 66% | AZ46: 110% | BA46: 90% | BB46: -5% | BC46: 0% | BD46: 195% | BE46: 119% | BK46: 3 / 8
B47: North 2 | C47: 108% | D47: 118% | E47: 61% | F47: 190% | G47: 314% | H47: 137% | I47: 64% | J47: 68% | K47: 41% | L47: 96% | M47: 179% | P47: 3 / 11 | S47: North 2 | T47: 0.29 | U47: 0.25 | V47: 1.29 | W47: 0.40 | X47: 0.19 | Y47: 0.16 | Z47: 0.30 | AA47: 0.41 | AB47: 1.03 | AC47: 0.31 | AD47: 0.11 | AH47: North 2 | AI47: 0.32 | AJ47: 0.30 | AK47: 0.78 | AL47: 0.77 | AM47: 0.61 | AN47: 0.22 | AO47: 0.20 | AP47: 0.27 | AQ47: 0.42 | AR47: 0.29 | AS47: 0.21 | AW47: west | AX47: =SUM(T52:T52)/SUM(AI52:AI52) -> 99% | AY47: 45% | AZ47: 84% | BA47: 63% | BB47: -158% | BC47: 0% | BD47: 177% | BE47: 94% | BK47: 1 / 8
B48: North Total | C48: 105% | D48: 152% | E48: 73% | F48: 169% | G48: 397% | H48: 130% | I48: 70% | J48: 65% | K48: 48% | L48: 93% | M48: 133% | P48: 1 / 11 | S48: North Total | T48: =SUM(T46:T47) -> 0.78 | U48: 0.45 | V48: 1.87 | W48: 1.06 | X48: 0.45 | Y48: 0.35 | Z48: 0.73 | AA48: 0.94 | AB48: =SUM(AB46:AB47) -> 2.37 | AC48: =SUM(AC46:AC47) -> 0.69 | AD48: 0.31 | AE48: 0.0 | AF48: 0.0 | AH48: North Total | AI48: =SUM(AI46:AI47) -> 0.81 | AJ48: 0.68 | AK48: 1.36 | AL48: 1.80 | AM48: 1.80 | AN48: 0.46 | AO48: 0.51 | AP48: 0.61 | AQ48: 1.14 | AR48: 0.64 | AS48: 0.41 | AT48: 0.00 | AU48: 0.0
B49: South 1 | C49: 100% | D49: 149% | E49: 75% | F49: 135% | G49: 725% | H49: 0% | I49: 48% | J49: 74% | K49: 200% | L49: 0% | M49: 43% | P49: 1 / 11 | S49: South 1 | T49: 0.41 | U49: 0.31 | V49: 0.60 | W49: 0.58 | X49: 0.08 | Y49: 0.00 | Z49: 0.72 | AA49: 0.68 | AB49: 0.48 | AC49: 0.00 | AD49: 0.75 | AH49: South 1 | AI49: 0.41 | AJ49: 0.46 | AK49: 0.45 | AL49: 0.79 | AM49: 0.58 | AN49: 0.32 | AO49: 0.34 | AP49: 0.50 | AQ49: 0.95 | AR49: 0.47 | AS49: 0.32 | AW49: Region | AX49: =SUM(T43:T52)/SUM(AI43:AI52) -> 87% | AY49: 65% | AZ49: 120% | BA49: 73% | BB49: -2% | BC49: 35% | BD49: 176% | BE49: 135% | BK49: 0 / 8
B50: South 2 | C50: 102% | D50: 152% | E50: 105% | F50: 98% | G50: -440% | H50: 0% | I50: 55% | J50: 98% | K50: 110% | L50: 0% | M50: 52% | P50: 5 / 11 | S50: South 2 | T50: 0.59 | U50: 0.31 | V50: 0.70 | W50: 1.02 | X50: -0.15 | Y50: 0.00 | Z50: 0.67 | AA50: 0.51 | AB50: 0.61 | AC50: 0.00 | AD50: 0.70 | AH50: South 2 | AI50: 0.60 | AJ50: 0.47 | AK50: 0.73 | AL50: 1.01 | AM50: 0.64 | AN50: 0.42 | AO50: 0.37 | AP50: 0.50 | AQ50: 0.67 | AR50: 0.45 | AS50: 0.37 | AW50: LFR | AX50: =AI55/T55 -> 100% | AY50: 100% | AZ50: 100% | BA50: 189% | BB50: 230% | BC50: 112% | BD50: 101% | BE50: 105% | BK50: 6 / 8
B51: South Total | C51: 101% | D51: 151% | E51: 91% | F51: 112% | G51: -1853% | H51: 0% | I51: 51% | J51: 84% | K51: 149% | L51: 0% | M51: 48% | P51: 2 / 11 | S51: South Total | T51: =SUM(T49:T50) -> 1.00 | U51: 0.62 | V51: 1.29 | W51: 1.61 | X51: -0.07 | Y51: 0.00 | Z51: 1.38 | AA51: 1.19 | AB51: 1.09 | AC51: 0.00 | AD51: 1.45 | AE51: 0.0 | AF51: 0.0 | AH51: South Total | AI51: =SUM(AI49:AI50) -> 1.02 | AJ51: 0.93 | AK51: 1.18 | AL51: 1.79 | AM51: 1.22 | AN51: 0.74 | AO51: 0.71 | AP51: 1.00 | AQ51: 1.62 | AR51: 0.92 | AS51: 0.69 | AT51: 0.00 | AU51: 0.0
B52: West 1 | C52: 101% | D52: 222% | E52: 119% | F52: 158% | G52: -63% | H52: 0% | I52: 57% | J52: 106% | K52: 114% | L52: 0% | M52: 33% | P52: 4 / 11 | S52: West 1 | T52: 0.49 | U52: 0.14 | V52: 0.64 | W52: 0.98 | X52: -1.17 | Y52: 0.00 | Z52: 0.64 | AA52: 0.67 | AB52: 0.65 | AC52: 0.00 | AD52: 0.63 | AH52: West 1 | AI52: 0.50 | AJ52: 0.30 | AK52: 0.77 | AL52: 1.55 | AM52: 0.74 | AN52: 0.26 | AO52: 0.36 | AP52: 0.71 | AQ52: 0.74 | AR52: 0.37 | AS52: 0.21 | AW52: India | AX52: =SUM(AI43:AI56)/SUM(T43:T56) -> 104% | AY52: 126% | AZ52: 88% | BA52: 142% | BB52: 21470% | BC52: 205% | BD52: 63% | BE52: 79% | BK52: 1 / 8
B53: West Total | C53: 101% | D53: 222% | E53: 119% | F53: 158% | G53: -63% | H53: 0% | I53: 57% | J53: 106% | K53: 114% | L53: 0% | M53: 33% | P53: 4 / 11 | S53: West Total | T53: =SUM(T52:T52) -> 0.49 | U53: 0.14 | V53: 0.64 | W53: 0.98 | X53: -1.17 | Y53: 0.00 | Z53: 0.64 | AA53: 0.67 | AB53: 0.65 | AC53: 0.00 | AD53: 0.63 | AE53: 0.0 | AF53: 0.0 | AH53: West Total | AI53: =SUM(AI52:AI52) -> 0.50 | AJ53: 0.30 | AK53: 0.77 | AL53: 1.55 | AM53: 0.74 | AN53: 0.26 | AO53: 0.36 | AP53: 0.71 | AQ53: 0.74 | AR53: 0.37 | AS53: 0.21 | AT53: 0.00 | AU53: 0.0
B54: Region Total | C54: 114% | D54: 156% | E54: 85% | F54: 140% | G54: -658% | H54: 313% | I54: 57% | J54: 77% | K54: 77% | L54: 243% | M54: 55% | P54: 1 / 11 | S54: Region Total | T54: =SUM(T53,T51,T48,T45) -> 2.34 | U54: 1.40 | V54: 4.65 | W54: 4.06 | X54: -0.68 | Y54: 0.52 | Z54: 3.08 | AA54: 3.28 | AB54: 5.06 | AC54: 0.88 | AD54: 2.65 | AE54: 0.0 | AF54: 0.0 | AH54: Region Total | AI54: =SUM(AI53,AI51,AI48,AI45) -> 2.66 | AJ54: 2.18 | AK54: 3.98 | AL54: 5.68 | AM54: 4.45 | AN54: 1.64 | AO54: 1.75 | AP54: 2.54 | AQ54: 3.91 | AR54: 2.13 | AS54: 1.47 | AT54: 0.00 | AU54: 0.0
B55: LFR | C55: 100% | D55: 100% | E55: 100% | F55: 189% | G55: 230% | H55: 112% | I55: 101% | J55: 105% | K55: 121% | L55: 114% | M55: 96% | P55: 8 / 11 | S55: LFR | T55: 4.84 | U55: 2.54 | V55: 4.74 | W55: 3.16 | X55: 0.69 | Y55: 1.50 | Z55: 1.55 | AA55: 1.55 | AB55: 1.54 | AC55: 1.64 | AD55: 1.80 | AH55: LFR | AI55: 4.84 | AJ55: 2.54 | AK55: 4.76 | AL55: 5.96 | AM55: 1.60 | AN55: 1.69 | AO55: 1.57 | AP55: 1.62 | AQ55: 1.87 | AR55: 1.87 | AS55: 1.72 | AW55: SLBD | AX55: =IFERROR(SUM(AI58:AI59)/SUM(T58:T59),0) -> 0% | AY55: 0% | AZ55: 0% | BA55: 0% | BB55: 0% | BC55: 0% | BD55: 0% | BE55: 0% | BK55: =COUNTIFS(AX55:BJ55,">"&94.5%,AX55:BJ55,"<"&120.4%)&" / "&COUNT(AX55:BJ55) -> 0 / 8
B56: Online | C56: 88% | D56: 84% | E56: 78% | F56: 48% | G56: 26% | H56: 100% | I56: 66% | J56: 55% | K56: 60% | L56: 194% | M56: 135% | P56: 1 / 11 | S56: Online | T56: 2.80 | U56: 1.50 | V56: 2.55 | W56: 1.37 | X56: 1.41 | Y56: 0.30 | Z56: 0.66 | AA56: 0.79 | AB56: 1.35 | AC56: 0.60 | AD56: 0.60 | AH56: Online | AI56: 2.47 | AJ56: 1.25 | AK56: 1.99 | AL56: 0.66 | AM56: 0.37 | AN56: 0.30 | AO56: 0.44 | AP56: 0.43 | AQ56: 0.82 | AR56: 1.16 | AS56: 0.81 | AW56: TTL | AX56: =AI61/T61 -> 100% | AY56: 110% | AZ56: 90% | BA56: 143% | BB56: 451% | BC56: 156% | BD56: 71% | BE56: 82% | BK56: =COUNTIFS(AX56:BJ56,">"&94.5%,AX56:BJ56,"<"&120.4%)&" / "&COUNT(AX56:BJ56) -> 2 / 8
B57: India Total | C57: 100% | D57: 110% | E57: 90% | F57: 143% | G57: 451% | H57: 156% | I57: 71% | J57: 82% | K57: 83% | L57: 166% | M57: 79% | P57: 2 / 11 | S57: India Total | T57: =SUM(T54:T56) -> 9.98 | U57: 5.44 | V57: 11.94 | W57: 8.58 | X57: 1.42 | Y57: 2.32 | Z57: 5.30 | AA57: 5.61 | AB57: 7.95 | AC57: 3.12 | AD57: 5.06 | AE57: 0.0 | AF57: 0.0 | AH57: India Total | AI57: =SUM(AI54:AI56) -> 9.98 | AJ57: 5.98 | AK57: 10.72 | AL57: 12.30 | AM57: 6.42 | AN57: 3.63 | AO57: 3.76 | AP57: 4.59 | AQ57: 6.59 | AR57: 5.16 | AS57: 4.00 | AT57: 0.00 | AU57: 0.0
B58: Sri Lanka | C58: 0% | D58: 0% | E58: 0% | F58: 0% | G58: 0% | H58: 0% | I58: 0% | J58: 0% | K58: 0% | L58: 0% | M58: 0% | P58: 0 / 11 | S58: SL | T58: 0.00 | U58: 0.00 | V58: 0.00 | W58: 0.00 | X58: 0.00 | Y58: 0.00 | Z58: 0.00 | AA58: 0.00 | AB58: 0.00 | AC58: 0.00 | AD58: 0.00 | AH58: Sri Lanka | AI58: 0.00 | AJ58: 0.00 | AK58: 0.00 | AL58: 0.00 | AM58: 0.00 | AN58: 0.00 | AO58: 0.00 | AP58: 0.00 | AQ58: 0.00 | AR58: 0.00 | AS58: 0.00
B59: Bangladesh | C59: 0% | D59: 0% | E59: 0% | F59: 0% | G59: 0% | H59: 0% | I59: 0% | J59: 0% | K59: 0% | L59: 0% | M59: 0% | P59: 0 / 11 | S59: BD | T59: 0.00 | U59: 0.00 | V59: 0.00 | W59: 0.00 | X59: 0.00 | Y59: 0.00 | Z59: 0.00 | AA59: 0.00 | AB59: 0.00 | AC59: 0.00 | AD59: 0.00 | AH59: Bangladesh | AI59: 0.00 | AJ59: 0.00 | AK59: 0.00 | AL59: 0.00 | AM59: 0.00 | AN59: 0.00 | AO59: 0.00 | AP59: 0.00 | AQ59: 0.00 | AR59: 0.00 | AS59: 0.00
B60: SLBD | C60: =IFERROR(AI60/T60,0) -> 0% | D60: 0% | E60: 0% | F60: 0% | G60: 0% | H60: 0% | I60: 0% | J60: 0% | K60: 0% | L60: 0% | M60: 0% | P60: 0 / 11 | S60: SLBD | T60: =SUM(T58:T59) -> 0.00 | U60: 0.00 | V60: 0.00 | W60: 0.00 | X60: 0.00 | Y60: 0.00 | Z60: 0.00 | AA60: 0.00 | AB60: 0.00 | AC60: 0.00 | AD60: 0.00 | AE60: 0.0 | AF60: 0.0 | AH60: SLBD | AI60: =SUM(AI58:AI59) -> 0.00 | AJ60: 0.00 | AK60: 0.00 | AL60: 0.00 | AM60: 0.00 | AN60: 0.00 | AO60: 0.00 | AP60: 0.00 | AQ60: 0.00 | AR60: 0.00 | AS60: 0.00 | AT60: 0.00 | AU60: 0.0
B61: Overall | C61: 100% | D61: 110% | E61: 90% | F61: 143% | G61: 451% | H61: 156% | I61: 71% | J61: 82% | K61: 83% | L61: 166% | M61: 79% | P61: 2 / 11 | S61: Consumer | T61: =SUM(T57:T59) -> 9.98 | U61: 5.44 | V61: 11.94 | W61: 8.58 | X61: 1.42 | Y61: 2.32 | Z61: 5.30 | AA61: 5.61 | AB61: 7.95 | AC61: 3.12 | AD61: 5.06 | AE61: 0.0 | AF61: 0.0 | AH61: Consumer | AI61: =SUM(AI57:AI59) -> 9.98 | AJ61: 5.98 | AK61: 10.72 | AL61: 12.30 | AM61: 6.42 | AN61: 3.63 | AO61: 3.76 | AP61: 4.59 | AQ61: 6.59 | AR61: 5.16 | AS61: 4.00 | AT61: 0.00 | AU61: 0.0
